{"text_format":"1","workbook":"xlsx","n_sheets":12,"sheets":["Schedule","11th4months","12th4months","11th2months","12th2months","11th24days","12th24days","Working","1_12th2months","2_11th2months","How to Use Time Table","Enable Macros"],"not_rendered":{"charts":0,"images":16,"macros":1,"external_links":0,"defined_names":18,"comments":0,"pivot_tables":0},"unopened":[],"bounds":{"document_bytes":16777216,"sheet_cells":100000,"rows_first":2000,"rows_last":500,"rows_between":2000,"halvings":0,"cell_chars":16384,"cell_head_chars":4096},"cells_cut":0,"cells_raw":0,"read":"whole","date_system":"1900"}

{"sheet":"Schedule","index":0,"n_rows":24,"n_cols":28,"rows_kept":24,"cut":false,"hidden":false,"merged":[[14,2,14,3],[0,1,1,3],[12,1,12,3],[2,1,2,5],[10,1,10,5],[0,5,1,5],[4,3,4,5]]}
[null,"STUDY PLAN FOR JEE",null,null,"HI ! WELCOME TO THE NEW DAY"]
[null,null,null,null,{"$f":"TODAY()","v":"2021-09-10"}]
[null,"JEE Time Table : You can view the Videos Any time you wish but to simplify the Routine we have divided the syllabus in 2 Time Slot "]
[null,"1- Morning (Time Slot 1): Any Time You Wish to Study in Morning/Evening"]
[null,"2- Evening (Time Solt 2): Any Time You Wish to Study in Evening/Morning",null,"Click here to learn how to Customize your Time Table"]
[null,"3- Each Row in the below time table represents a New Day"]
[null,"4- We have divided the Syllabus in 440 Lectures (Known as Day)",null,"Before Customizing please Enable Macros"]
[null,"5- Each Day Contains Video Lectures of 30 Min following by practicing questions Online",null,"To implement any changes you have to click Generate Time Table"]
[null,"6- The time table allows you to focus on 12th board Exam as well"]
[null,"7- Bold is for competation level question practice"]
[null,null,null,null,null,null,"User Input Cells"]
[]
[null,"Your Custom Time Table",null,null,null,"Reason for skipping days (optional)","Please enter dates to be skipped"]
[null,"Enter When will you start your JEE PreparationC","2021-09-10"]
[null,"Select Weekdays Days you will prefer to Study C",null,null,null,null,null,null,null,null,null,null,null,null,null,null,null,null,null,null,null,null,null,null,null,"Original Sheet Name","New Sheet Name","Start Date"]
[null,"Create your Own Time Table K","Start Date","End Date"]
[null,"12th revision in 2 Months",{"$f":"IFERROR(MIN(INDIRECT(\"'\" & $AA17 & \"'!$A:$A\")),\"\")","v":"2021-09-10"},{"$f":"IFERROR(MAX(INDIRECT(\"'\" & $AA17 & \"'!$A:$A\")),\"\")","v":"2021-11-20"},null,null,null,null,null,null,null,null,null,null,null,null,null,null,null,null,null,null,null,null,null,{"$f":"IF(ISBLANK($B17),\"na\",VLOOKUP($B17,Working!$A$2:$B$7,2,0))","v":"12th2months"},"1_12th2months",{"$f":"$C$14","v":"2021-09-10"}]
[null,"11th revision in 2 Months","2021-11-21","2022-01-25",null,null,null,null,null,null,null,null,null,null,null,null,null,null,null,null,null,null,null,null,null,{"$f":"IF(ISBLANK($B18),\"na\",VLOOKUP($B18,Working!$A$2:$B$7,2,0))","v":"11th2months"},"2_11th2months",{"$f":"D17+1","v":"2021-11-21"}]
[null,null,"","",null,null,null,null,null,null,null,null,null,null,null,null,null,null,null,null,null,null,null,null,null,{"$f":"IF(ISBLANK($B19),\"na\",VLOOKUP($B19,Working!$A$2:$B$7,2,0))","v":"na"},null,{"$f":"D18+1","v":"2022-01-26"}]
[null,null,"","",null,null,null,null,null,null,null,null,null,null,null,null,null,null,null,null,null,null,null,null,null,{"$f":"IF(ISBLANK($B20),\"na\",VLOOKUP($B20,Working!$A$2:$B$7,2,0))","v":"na"},null,{"$error":"#VALUE!"}]
[null,null,"","",null,null,null,null,null,null,null,null,null,null,null,null,null,null,null,null,null,null,null,null,null,{"$f":"IF(ISBLANK($B21),\"na\",VLOOKUP($B21,Working!$A$2:$B$7,2,0))","v":"na"},null,{"$error":"#VALUE!"}]
[null,null,"","",null,null,null,null,null,null,null,null,null,null,null,null,null,null,null,null,null,null,null,null,null,{"$f":"IF(ISBLANK($B22),\"na\",VLOOKUP($B22,Working!$A$2:$B$7,2,0))","v":"na"},null,{"$error":"#VALUE!"}]
[null,null,"","",null,null,null,null,null,null,null,null,null,null,null,null,null,null,null,null,null,null,null,null,null,{"$f":"IF(ISBLANK($B23),\"na\",VLOOKUP($B23,Working!$A$2:$B$7,2,0))","v":"na"},null,{"$error":"#VALUE!"}]
[null,null,"","",null,null,null,null,null,null,null,null,null,null,null,null,null,null,null,null,null,null,null,null,null,{"$f":"IF(ISBLANK($B24),\"na\",VLOOKUP($B24,Working!$A$2:$B$7,2,0))","v":"na"},null,{"$error":"#VALUE!"}]

{"sheet":"11th4months","index":1,"n_rows":134,"n_cols":10,"rows_kept":134,"cut":false,"hidden":true,"merged":[[133,6,133,9],[120,1,120,4],[123,6,123,9],[126,6,126,9],[127,6,127,9],[132,1,132,4],[132,6,132,9],[83,6,83,9],[119,1,119,3],[88,6,88,9],[90,6,90,9],[95,6,95,9],[98,1,98,4],[100,1,100,4],[106,6,106,9],[107,6,107,9],[108,6,108,9],[110,1,110,4],[113,6,113,9],[118,1,118,4],[64,1,64,4],[71,1,71,4],[72,6,72,9],[76,6,76,9],[79,1,79,4],[1,1,1,4],[1,6,1,9],[2,5,133,5],[10,1,10,4],[11,6,11,9],[40,1,40,4],[42,1,42,4],[44,1,44,4],[46,1,46,4],[50,6,50,9],[84,6,84,9],[52,1,52,4],[52,6,52,9],[57,1,57,4],[58,1,58,4],[62,1,62,4]]}
["Date","Subject","Unit","Chapter","Lecture",null,"Subject","Unit","Chapter","Lecture"]
[null,"Morning (Time Slot 1)",null,null,null,null,"Evening (Time Slot 2)"]
[null,"Physics","Mechanics","Kinematics","Day 1",null,"Chemistry","Physical Chemistry Part 1","Basic Concepts of Chemistry","Day 1"]
[null,"Chemistry","Physical Chemistry Part 1","Basic Concepts of Chemistry","Day 2",null,"Maths","Trigonometry","Trigonometric Functions and Identities","Day 1"]
[null,"Maths","Trigonometry","Trigonometric Functions and Identities","Day 2",null,"Physics","Mechanics","Kinematics","Day 2"]
[null,"Physics","Mechanics","Kinematics","Day 3",null,"Chemistry","Physical Chemistry Part 1","Basic Concepts of Chemistry","Day 3"]
[null,"Chemistry","Physical Chemistry Part 1","Basic Concepts of Chemistry","Day 4",null,"Maths","Trigonometry","Trigonometric Functions and Identities","Day 3"]
[null,"Maths","Trigonometry","Trigonometric Functions and Identities","Day 4",null,"Physics","Mechanics","Kinematics","Day 4"]
[null,"Physics","Mechanics","Kinematics","Day 5",null,"Chemistry","Physical Chemistry Part 1","Basic Concepts of Chemistry","Day 5"]
[null,"Chemistry","Physical Chemistry Part 1","Basic Concepts of Chemistry","Day 6",null,"Maths","Trigonometry","Trigonometric Functions and Identities","Day 5"]
[null,"Online Test Trigonometric Functions and Identities",null,null,null,null,"Physics","Mechanics","Kinematics","Day 6"]
[null,"Physics","Mechanics","Kinematics","Day 7",null,"Online Test Basic Concepts of Chemistry"]
[null,"Chemistry","Physical Chemistry Part 1","Properties of Gases","Day 1",null,"Maths","Trigonometry","Trigonometric Equation","Day 1"]
[null,"Maths","Trigonometry","Trigonometric Equation","Day 2 ",null,"Physics","Mechanics","Kinematics","Day 8"]
[null,"Physics","Mechanics","Kinematics","Day 9",null,"Chemistry","Physical Chemistry Part 1","Properties of Gases","Day 2"]
[null,"Chemistry","Physical Chemistry Part 1","Properties of Gases","Day 3",null,"Maths","Trigonometry","Trigonometric Equation","Day 3"]
[null,"Maths","Trigonometry","Trigonometric Equation","Day 4",null,"Physics","Mechanics","Kinematics","Day 10"]
[null,"Physics","Mechanics","Kinematics","Day 11",null,"Chemistry","Physical Chemistry Part 1","Properties of Gases","Day 4"]
[null,"Chemistry","Physical Chemistry Part 1","Properties of Gases","Day 5",null,"Maths","Trigonometry","Trigonometric Equation","Day 5"]
[null,"Maths","Trigonometry","Trigonometric Equation","Test",null,"Physics","Mechanics","Kinematics","Test"]
[null,"Physics","Mechanics","Dynamics","Day 1",null,"Chemistry","Physical Chemistry Part 1","Properties of Gases","Day 6"]
[null,"Chemistry","Physical Chemistry Part 1","Properties of Gases","Test",null,"Maths","Trigonometry","Logarithms and Their Properties","Day 1"]
[null,"Maths","Trigonometry","Logarithms and Their Properties","Test",null,"Physics","Mechanics","Dynamics","Day 2"]
[null,"Physics","Mechanics","Dynamics","Day 3",null,"Chemistry","Physical Chemistry Part 1","Thermodynamics","Day 1"]
[null,"Chemistry","Physical Chemistry Part 1","Thermodynamics","Day 2",null,"Maths","Algebra","Complex Numbers","Day 1"]
[null,"Maths","Algebra","Complex Numbers","Day 2",null,"Physics","Mechanics","Dynamics","Test"]
[null,"Physics","Mechanics","Circular Motion","Day 1",null,"Chemistry","Physical Chemistry Part 1","Thermodynamics","Day 3"]
[null,"Chemistry","Physical Chemistry Part 1","Thermodynamics","Day 4",null,"Maths","Algebra","Complex Numbers","Day 3"]
[null,"Maths","Algebra","Complex Numbers","Day 4",null,"Physics","Mechanics","Circular Motion","Day 2"]
[null,"Physics","Mechanics","Circular Motion","Day 3",null,"Chemistry","Physical Chemistry Part 1","Thermodynamics","Day 5"]
[null,"Chemistry","Physical Chemistry Part 1","Thermodynamics","Day 6",null,"Maths","Algebra","Complex Numbers","Day 5"]
[null,"Maths","Algebra","Complex Numbers","Day 6",null,"Physics","Mechanics","Circular Motion","Day 4"]
[null,"Physics","Mechanics","Circular Motion","Test",null,"Chemistry","Physical Chemistry Part 1","Thermodynamics","Day 7"]
[null,"Chemistry","Physical Chemistry Part 1","Thermodynamics","Day 8",null,"Maths","Algebra","Complex Numbers","Day 7"]
[null,"Maths","Algebra","Complex Numbers","Test",null,"Physics","Mechanics","Centre of Mass Momentum and Work Energy","Day 1"]
[null,"Physics","Mechanics","Centre of Mass Momentum and Work Energy","Day 2",null,"Chemistry","Physical Chemistry Part 1","Thermodynamics","Test"]
[null,"Chemistry","Physical Chemistry Part 1","Redox Reaction & Electromotive Force","Day 1",null,"Maths","Algebra","Theory of Quadratic Equations","Day 1"]
[null,"Maths","Algebra","Theory of Quadratic Equations","Day 2",null,"Physics","Mechanics","Centre of Mass Momentum and Work Energy","Day 3"]
[null,"Physics","Mechanics","Centre of Mass Momentum and Work Energy","Day 4",null,"Chemistry","Physical Chemistry Part 1","Redox Reaction & Electromotive Force","Day 2"]
[null,"Chemistry","Physical Chemistry Part 1","Redox Reaction & Electromotive Force","Day 3",null,"Maths","Algebra","Theory of Quadratic Equations","Day 3"]
[null,"Online Test of Theory of Quadratic Equations",null,null,null,null,"Physics","Mechanics","Centre of Mass Momentum and Work Energy","Day 5"]
[null,"Physics","Mechanics","Centre of Mass Momentum and Work Energy","Day 6",null,"Chemistry","Physical Chemistry Part 1","Redox Reaction & Electromotive Force","Day 4"]
[null,"Online Test of Redox Reaction & Electromotive force",null,null,null,null,"Maths","Algebra","Permutations and Combinations","Day 1 "]
[null,"Maths","Algebra","Permutations and Combinations","Day 2",null,"Physics","Mechanics","Centre of Mass Momentum and Work Energy","Day 7"]
[null,"Online Test of Mass Momentum and Work Energy",null,null,null,null,"Chemistry","Physical Chemistry Part 1","Structure of Atom","Day 1"]
[null,"Chemistry","Physical Chemistry Part 1","Structure of Atom","Day 2",null,"Maths","Algebra","Permutations and Combinations","Day 3"]
[null,"Online Test of Permutations and Combinations",null,null,null,null,"Physics","Mechanics","Rotation","Day 1"]
[null,"Physics","Mechanics","Rotation","Day 2",null,"Chemistry","Physical Chemistry Part 1","Structure of Atom","Day 3"]
[null,"Chemistry","Physical Chemistry Part 1","Structure of Atom","Day 4",null,"Maths","Algebra","Probability","Day 1"]
[null,"Maths","Algebra","Probability","Day 2",null,"Physics","Mechanics","Rotation","Day 3"]
[null,"Physics","Mechanics","Rotation","Day 4",null,"Online Test of Structure of Atom"]
[null,"Chemistry","Physical Chemistry Part 1","Solid States","Day 1",null,"Maths","Algebra","Probability","Day 3"]
[null,"Online Test of Probability",null,null,null,null,"Online Test of Rotation "]
[null,"Physics","Thermal Physices","Thermometry","Day 1",null,"Chemistry","Physical Chemistry Part 1","Solid States","Day 2"]
[null,"Chemistry","Physical Chemistry Part 1","Solid States","Day 3",null,"Maths","Algebra","Progression and Series","Day 1"]
[null,"Maths","Algebra","Progression and Series","Day 2",null,"Physics","Thermal Physices","Thermometry","Day 2"]
[null,"Physics","Thermal Physices","Thermometry","Day 3",null,"Chemistry","Physical Chemistry Part 1","Solid States","Day 4"]
[null,"Online Test of Solid States",null,null,null,null,"Maths","Algebra","Progression and Series","Day 3"]
[null,"Online Test of Progression and Series",null,null,null,null,"Physics","Thermal Physices","Thermometry","Day 4"]
[null,"Physics","Thermal Physices","Thermometry","Day 5",null,"Chemistry","Organic Chemistry Part 1","Classification and representation of organic molecules","Day 1"]
[null,"Chemistry","Organic Chemistry Part 1","Nomenclature of organic molecules","Day 2",null,"Maths","Algebra","Binomial Theorem","Day 1"]
[null,"Maths","Algebra","Binomial Theorem","Day 2",null,"Physics","Thermal Physices","Thermometry","Day 6"]
[null,"Online Test of Thermometry",null,null,null,null,"Chemistry","Organic Chemistry Part 1","Determination of moleccular formula","Day 3"]
[null,"Chemistry","Organic Chemistry Part 1","General consepts of chemical bonding","Day 4",null,"Maths","Algebra","Binomial Theorem","Day 3"]
[null,"Online Test of Binomial Theorem",null,null,null,null,"Physics","Thermal Physices","Thermodynamics","Day 1"]
[null,"Physics","Thermal Physices","Thermodynamics","Day 1",null,"Chemistry","Organic Chemistry Part 1","Hybrid orbitals and geometry of molecules","Day 5"]
[null,"Chemistry","Organic Chemistry Part 1","Bonding weaker than covalent bonding","Day 6",null,"Maths","Algebra","Determinants ","Day 1"]
[null,"Maths","Algebra","Determinants ","Day 2",null,"Physics","Thermal Physices","Thermodynamics","Day 2"]
[null,"Physics","Thermal Physices","Thermodynamics","Day 3",null,"Chemistry","Organic Chemistry Part 1","Factors affecting the nature of covalent bonding","Day 7"]
[null,"Chemistry","Organic Chemistry Part 1","Aromaticity 1 (aromaticity of annulenes)","Day 8",null,"Maths","Algebra","Determinants ","Day 3"]
[null,"Maths","Algebra","Determinants ","Day 4",null,"Physics","Thermal Physices","Thermodynamics","Day 4"]
[null,"Online Test of Thermodynamics",null,null,null,null,"Chemistry","Organic Chemistry Part 1","Aromaticity 2 (aromaticity of other compounds)","Day 9"]
[null,"Chemistry","Organic Chemistry Part 1","Isomerism (constitutional)","Day 10",null,"Online Test of Determinants"]
[null,"Maths","Algebra","Matrices","Day 1",null,"Physics","Thermal Physices","Heat Transfer","Day 1"]
[null,"Physics","Thermal Physices","Heat Transfer","Day 2",null,"Chemistry","Inorganic Chemistry Part 1","Besic Concept of Periodic Table ","Day 1"]
[null,"Chemistry","Inorganic Chemistry Part 1","Besic Concept of Periodic Table ","Day 2",null,"Maths","Algebra","Matrices","Day 2"]
[null,"Maths","Algebra","Matrices","Day 3",null,"Online Test of Heat Transfer"]
[null,"Physics","Thermal Physices","School Level",null,null,"Chemistry","Inorganic Chemistry Part 1","Besic Concept of Periodic Table ","Day 3"]
[null,"Chemistry","Inorganic Chemistry Part 1","Besic Concept of Periodic Table ","Day 4",null,"Maths","Algebra","Matrices","Day 4"]
[null,"Online Test of Metrices",null,null,null,null,"Physics","Waves & Fluid Mechanics","Fluid","Day 1"]
[null,"Physics","Waves & Fluid Mechanics","Fluid","Day 2",null,"Chemistry","Inorganic Chemistry Part 1","Besic Concept of Periodic Table ","Day 5"]
[null,"Chemistry","Inorganic Chemistry Part 1","Besic Concept of Periodic Table ","Day 6",null,"Maths","Algebra","Mean and Variance","Day 1"]
[null,"Maths","Algebra","Mean and Variance","Day 2",null,"Physics","Waves & Fluid Mechanics","Fluid","Day 3"]
[null,"Physics","Waves & Fluid Mechanics","Fluid","Day 4",null,"Online Test of Besic Concept of Periodic Table"]
[null,"Chemistry","Inorganic Chemistry Part 1","Metallurgy","Day 1",null,"Online Test of Mean and Variance"]
[null,"Maths","Algebra","Linear Programming","Day 1",null,"Physics","Waves & Fluid Mechanics","Fluid","Day 5"]
[null,"Physics","Waves & Fluid Mechanics","Fluid","Day 6",null,"Chemistry","Inorganic Chemistry Part 1","Metallurgy","Day 2"]
[null,"Chemistry","Inorganic Chemistry Part 1","Metallurgy","Day 3",null,"Maths","Algebra","Linear Programming","Day 2"]
[null,"Maths","Algebra","Linear Programming","Day 3",null,"Online Test of Fluid "]
[null,"Physics","Waves & Fluid Mechanics","Waves","Day 1",null,"Chemistry","Inorganic Chemistry Part 1","Metallurgy","Day 4"]
[null,"Chemistry","Inorganic Chemistry Part 1","Metallurgy","Day 5",null,"Online Test of Linear Programming"]
[null,"Maths","Differencial Calculas","Fundamentals and Functions","Day 1",null,"Physics","Waves & Fluid Mechanics","Waves","Day 2"]
[null,"Physics","Waves & Fluid Mechanics","Waves","Day 3",null,"Chemistry","Inorganic Chemistry Part 1","Metallurgy","Day 6"]
[null,"Chemistry","Inorganic Chemistry Part 1","Metallurgy","Day 7",null,"Maths","Differencial Calculas","Fundamentals and Functions","Day 2"]
[null,"Maths","Differencial Calculas","Fundamentals and Functions","Day 3",null,"Physics","Waves & Fluid Mechanics","Waves","Day4"]
[null,"Physics","Waves & Fluid Mechanics","Waves","Day 5",null,"Online Test of Metalurgy"]
[null,"Chemistry","Inorganic Chemistry Part 1","s-Block Elements","Day 1",null,"Maths","Differencial Calculas","Fundamentals and Functions","Day 4"]
[null,"Maths","Differencial Calculas","Fundamentals and Functions","Day 5",null,"Physics","Waves & Fluid Mechanics","Waves","Day 6"]
[null,"Online Test of Waves",null,null,null,null,"Chemistry","Inorganic Chemistry Part 1","s-Block Elements","Day 2"]
[null,"Chemistry","Inorganic Chemistry Part 1","s-Block Elements","Day 3",null,"Maths","Differencial Calculas","Fundamentals and Functions","Day 6"]
[null,"Online Test of Fundamentals and Functions",null,null,null,null,"Physics","Waves & Fluid Mechanics","Simple Harmonic Motion","Day 1"]
[null,"Physics","Waves & Fluid Mechanics","Simple Harmonic Motion","Day 2",null,"Chemistry","Inorganic Chemistry Part 1","s-Block Elements","Day 4"]
[null,"Chemistry","Inorganic Chemistry Part 1","s-Block Elements","Day 5",null,"Maths","Differencial Calculas","Limit","Day 1"]
[null,"Maths","Differencial Calculas","Limit","Day 2",null,"Physics","Waves & Fluid Mechanics","Simple Harmonic Motion","Day 3"]
[null,"Physics","Waves & Fluid Mechanics","Simple Harmonic Motion","Day 4",null,"Chemistry","Inorganic Chemistry Part 1","s-Block Elements","Day 6"]
[null,"Chemistry","Inorganic Chemistry Part 1","s-Block Elements","Day 7",null,"Maths","Differencial Calculas","Limit","Day 3"]
[null,"Maths","Differencial Calculas","Limit","Day 4",null,"Online Test of Simple Harmonic Motion"]
[null,"Physics","Waves & Fluid Mechanics","Gravitation and Satellite","Day 1",null,"Online Test of s-Block Eolements"]
[null,"Chemistry","Organic Chemistry Part 2","Basic Organic Chemistry","Day 1",null,"Online Test of Limit"]
[null,"Maths","Differencial Calculas","Continuity and Differentiability","Day 1",null,"Physics","Waves & Fluid Mechanics","Gravitation and Satellite","Day 2"]
[null,"Online Test of Gravitation and Satellite",null,null,null,null,"Chemistry","Organic Chemistry Part 2","Basic Organic Chemistry","Day 2"]
[null,"Chemistry","Organic Chemistry Part 2","Basic Organic Chemistry","Day 3",null,"Maths","Differencial Calculas","Continuity and Differentiability","Day 2"]
[null,"Maths","Differencial Calculas","Continuity and Differentiability","Day 3",null,"Chemistry","Organic Chemistry Part 2","Basic Organic Chemistry","Day 4"]
[null,"Chemistry","Organic Chemistry Part 2","Basic Organic Chemistry","Day 5",null,"Online Test of Continuity and Differentiability"]
[null,"Maths","Differencial Calculas","Differentiation","Day 1",null,"Chemistry","Organic Chemistry Part 2","Basic Organic Chemistry","Day 6"]
[null,"Chemistry","Organic Chemistry Part 2","Basic Organic Chemistry","Day 7",null,"Maths","Differencial Calculas","Differentiation","Day 2"]
[null,"Maths","Differencial Calculas","Differentiation","Day 3",null,"Chemistry","Organic Chemistry Part 2","Basic Organic Chemistry","Day 8"]
[null,"Chemistry","Organic Chemistry Part 2","Basic Organic Chemistry","Day 9",null,"Maths","Differencial Calculas","Differentiation","Day 4"]
[null,"Online Test of Differentiation",null,null,null,null,"Chemistry","Organic Chemistry Part 2","Basic Organic Chemistry","Day 9"]
[null,"Online Test for Basic Organic Chemistry",null,null,null,null,"Maths","Differencial Calculas","Application and Derivatives","Day 1"]
[null,"Online Test of Application and Derivatives",null,null,null,null,"Chemistry","Organic Chemistry Part 2","Reaction Mechanism","Day 1"]
[null,"Chemistry","Organic Chemistry Part 2","Reaction Mechanism","Day 2",null,"Maths","Differencial Calculas","Tangents and Normals ","Day 1"]
[null,"Maths","Differencial Calculas","Tangents and Normals ","Day 2",null,"Chemistry","Organic Chemistry Part 2","Reaction Mechanism","Day 3"]
[null,"Chemistry","Organic Chemistry Part 2","Reaction Mechanism","Day 4",null,"Online Test of Tangents and Normals"]
[null,"Maths","Differencial Calculas","Monotonicity","Day 1",null,"Chemistry","Organic Chemistry Part 2","Reaction Mechanism","Day 5"]
[null,"Chemistry","Organic Chemistry Part 2","Reaction Mechanism","Day 6",null,"Maths","Differencial Calculas","Monotonicity","Day 2"]
[null,"Maths","Differencial Calculas","Monotonicity","Day 3",null,"Online Test for Reaction Mechanism"]
[null,"Chemistry","Organic Chemistry Part 2","Hydrocarbon","Day 1",null,"Online Test of Monotonicity"]
[null,"Maths","Differencial Calculas","Maxima Minima","Day 1",null,"Chemistry","Organic Chemistry Part 2","Hydrocarbon","Day 2"]
[null,"Chemistry","Organic Chemistry Part 2","Hydrocarbon","Day 3",null,"Maths","Differencial Calculas","Maxima Minima","Day 2"]
[null,"Maths","Differencial Calculas","Maxima Minima","Day 3",null,"Chemistry","Organic Chemistry Part 2","Hydrocarbon","Day 4"]
[null,"Chemistry","Organic Chemistry Part 2","Hydrocarbon","Day 5",null,"Maths","Differencial Calculas","Maxima Minima","Day 4"]
[null,"Online Test of Maxima Minima",null,null,null,null,"Online Test for Hydrocarbon"]
[null,"Maths","Differencial Calculas","Graphical Transformation","Day 1",null,"Online Test of Graphical Transformation"]

{"sheet":"12th4months","index":2,"n_rows":134,"n_cols":10,"rows_kept":134,"cut":false,"hidden":true,"merged":[[126,1,126,4],[128,1,128,4],[129,1,129,4],[133,6,133,9],[104,1,104,4],[108,6,108,9],[109,6,109,9],[117,1,117,4],[120,1,120,4],[122,1,122,4],[99,1,99,4],[99,6,99,9],[68,1,68,4],[74,6,74,9],[77,1,77,4],[80,6,80,9],[81,6,81,9],[86,6,86,9],[88,6,88,9],[90,1,90,4],[90,6,90,9],[95,1,95,4],[95,6,95,9],[53,6,53,9],[58,6,58,9],[59,6,59,9],[60,6,60,9],[66,1,66,4],[66,6,66,9],[35,6,35,9],[40,1,40,4],[40,6,40,9],[45,1,45,4],[49,1,49,4],[49,6,49,9],[34,1,34,4],[1,1,1,4],[1,6,1,9],[8,1,8,4],[9,1,9,4],[17,1,17,4],[18,1,18,4],[19,1,19,4],[22,6,22,9],[28,1,28,4],[29,6,29,9],[32,1,32,4]]}
["Date","Subject","Unit","Chapter","Lecture",null,"Subject","Unit","Chapter","Lecture"]
[null,"Morning (Time Slot 1)",null,null,null,null,"Evening (Time Slot 2)"]
[null,"Physics","Optics","Reflection","Day 1",null,"Chemistry","Physical chemistry 2 ","Chemical Kinetics","Day 1"]
[null,"Chemistry","Physical chemistry 2 ","Chemical Kinetics","Day 2",null,"Maths","Integral Calculus","Indefinite Integral","Day 1"]
[null,"Maths","Integral Calculus","Indefinite Integral","Day 2",null,"Physics","Optics","Reflection","Day 2"]
[null,"Physics","Optics","Reflection","Day 3",null,"Chemistry","Physical chemistry 2 ","Chemical Kinetics","Day 3"]
[null,"Chemistry","Physical chemistry 2 ","Chemical Kinetics","Day 4",null,"Maths","Integral Calculus","Indefinite Integral","Day 3"]
[null,"Maths","Integral Calculus","Indefinite Integral","Day 4",null,"Physics","Optics","Reflection","Day 4"]
[null,"Online test for Reflection",null,null,null,null,"Chemistry","Physical chemistry 2 ","Chemical Kinetics","Day 5"]
[null,"Online Test for  Chemical Kinetics",null,null,null,null,"Maths","Integral Calculus","Indefinite Integral","Day 5"]
[null,"Maths","Integral Calculus","Indefinite Integral","Day 6",null,"Physics","Optics","Refraction","Day 1"]
[null,"Physics","Optics","Refraction","Day 2",null,"Chemistry","Physical chemistry 2 ","Chemical Equilibrium ","Day 1"]
[null,"Chemistry","Physical chemistry 2 ","Chemical Equilibrium ","Day 2",null,"Maths","Integral Calculus","Indefinite Integral","Day 7"]
[null,"Maths","Integral Calculus","Indefinite Integral","Day 8",null,"Physics","Optics","Refraction","Day 3"]
[null,"Physics","Optics","Refraction","Day 4",null,"Chemistry","Physical chemistry 2 ","Chemical Equilibrium ","Day 3"]
[null,"Chemistry","Physical chemistry 2 ","Chemical Equilibrium ","Day 4",null,"Maths","Integral Calculus","Indefinite Integral","Day 9"]
[null,"Maths","Integral Calculus","Indefinite Integral","Day 10",null,"Physics","Optics","Refraction","day 5"]
[null,"Online test for Refraction",null,null,null,null,"Chemistry","Physical chemistry 2 ","Chemical Equilibrium ","Day 5"]
[null,"Online test for Chemical Equilibrium",null,null,null,null,"Maths","Integral Calculus","Indefinite Integral","Day 11"]
[null,"Online test for Indefinite Integral",null,null,null,null,"Physics","Optics","Wave Optics","Day 1"]
[null,"Physics","Optics","Wave Optics","Day 2",null,"Chemistry","Physical chemistry 2 ","Ionic Equilibrium ","Day 1"]
[null,"Chemistry","Physical chemistry 2 ","Ionic Equilibrium ","Day 2",null,"Maths","Integral Calculus","Definite Integral","Day 1"]
[null,"Maths","Integral Calculus","Definite Integral","Day 2",null,"Online test for Wave Optics"]
[null,"Physics","Current Electrocity","Electrostate","Day 1",null,"Chemistry","Physical chemistry 2 ","Ionic Equilibrium ","Day 3"]
[null,"Chemistry","Physical chemistry 2 ","Ionic Equilibrium ","Day 4",null,"Maths","Integral Calculus","Definite Integral","Day 3"]
[null,"Maths","Integral Calculus","Definite Integral","Day 4",null,"Physics","Current Electrocity","Electrostate","Day 2"]
[null,"Physics","Current Electrocity","Electrostate","Day 3",null,"Chemistry","Physical chemistry 2 ","Ionic Equilibrium ","Day 5"]
[null,"Chemistry","Physical chemistry 2 ","Ionic Equilibrium ","Day 6",null,"Maths","Integral Calculus","Definite Integral","Day 5"]
[null,"Online test for Definite Integral",null,null,null,null,"Physics","Current Electrocity","Electrostate","Day 4"]
[null,"Physics","Current Electrocity","Electrostate","Day 5",null,"Online test for Ionic Equilibrium"]
[null,"Chemistry","Physical chemistry 2 ","Electrolysis and Electrolytic Conductance","Day 1",null,"Maths","Integral Calculus","Area ","Day 1"]
[null,"Maths","Integral Calculus","Area ","Day 2",null,"Physics","Current Electrocity","Electrostate","Day 6"]
[null,"Online test for Electrostate",null,null,null,null,"Chemistry","Physical chemistry 2 ","Electrolysis and Electrolytic Conductance","Day 2"]
[null,"Chemistry","Physical chemistry 2 ","Electrolysis and Electrolytic Conductance","Day 3",null,"Maths","Integral Calculus","Area ","Day 3"]
[null,"Online test for Area",null,null,null,null,"Physics","Current Electrocity","Capacitor","day 1"]
[null,"Physics","Current Electrocity","Capacitor","day 2",null,"Online test for Electrolysis and Electrolytic Conductance"]
[null,"Chemistry","Physical chemistry 2 ","Ideal Solution ","Day 1",null,"Maths","Integral Calculus","Differential Equation","Day 1"]
[null,"Maths","Integral Calculus","Differential Equation","Day 2",null,"Physics","Current Electrocity","Capacitor","day 3"]
[null,"Physics","Current Electrocity","Capacitor","day 4",null,"Chemistry","Physical chemistry 2 ","Ideal Solution ","Day 2"]
[null,"Chemistry","Physical chemistry 2 ","Ideal Solution ","Day 3",null,"Maths","Integral Calculus","Differential Equation","Day 3"]
[null,"Online test for Differential Equation",null,null,null,null,"Online test for Capacitor"]
[null,"Physics","Current Electrocity","Current electricity","Day 1",null,"Chemistry","Physical chemistry 2 ","Ideal Solution ","Day 4"]
[null,"Chemistry","Physical chemistry 2 ","Ideal Solution ","Day 5",null,"Maths","Coordinate Geometry","Coordinate Systems and Coordinate","Day 1"]
[null,"Maths","Coordinate Geometry","Coordinate Systems and Coordinate","Day 2",null,"Physics","Current Electrocity","Current electricity","Day 2"]
[null,"Physics","Current Electrocity","Current electricity","Day 3",null,"Chemistry","Physical chemistry 2 ","Ideal Solution ","Day 6"]
[null,"Online test for Ideal Solution",null,null,null,null,"Maths","Coordinate Geometry","Coordinate Systems and Coordinate","Day 3"]
[null,"Maths","Coordinate Geometry","Coordinate Systems and Coordinate","Day 4",null,"Physics","Current Electrocity","Current electricity","Day 4"]
[null,"Physics","Current Electrocity","Current electricity","Day 5",null,"Chemistry","Physical chemistry 2 ","Surface Chemistry","Day 1"]
[null,"Chemistry","Physical chemistry 2 ","Surface Chemistry","Day 2",null,"Maths","Coordinate Geometry","Coordinate Systems and Coordinate","Day 5"]
[null,"Online test for Coordinate Systems and Coordinate",null,null,null,null,"Online test for Current Electrocity"]
[null,"Physics","Electromagnetism ","Moving charge in magnetic Field","Day 1",null,"Chemistry","Physical chemistry 2 ","Surface Chemistry","Day 3"]
[null,"Chemistry","Physical chemistry 2 ","Surface Chemistry","Day 4",null,"Maths","Coordinate Geometry","The Straight Line","Day 1"]
[null,"Maths","Coordinate Geometry","The Straight Line","Day 2",null,"Physics","Electromagnetism ","Moving charge in magnetic Field","Day 2"]
[null,"Physics","Electromagnetism ","Moving charge in magnetic Field","Day 3",null,"Online test for Surface Chemistry"]
[null,"Chemistry","Organic Chemistry 2","Halogen Compound","Day 1",null,"Maths","Coordinate Geometry","The Straight Line","Day 3"]
[null,"Maths","Coordinate Geometry","The Straight Line","Day 4",null,"Physics","Electromagnetism ","Moving charge in magnetic Field","Day 4"]
[null,"Physics","Electromagnetism ","Moving charge in magnetic Field","Day 5",null,"Chemistry","Organic Chemistry 2","Halogen Compound"]
[null,"Chemistry","Organic Chemistry 2","Halogen Compound",null,null,"Maths","Coordinate Geometry","The Straight Line","Day 5"]
[null,"Maths","Coordinate Geometry","The Straight Line","Day 6",null,"Online test for Moving charge in magnetic Field"]
[null,"Physics","Electromagnetism ","Magnetic field of current Element","Day 1",null,"Online Test for Halogen Compound"]
[null,"Chemistry","Organic Chemistry 2","Alcohols, Phenols and Ethers","Day 1",null,"Online test for The straight Line"]
[null,"Maths","Coordinate Geometry","The Pairs of straight Line","Day 1",null,"Physics","Electromagnetism ","Magnetic field of current Element","Day 2"]
[null,"Physics","Electromagnetism ","Magnetic field of current Element","Day 3",null,"Chemistry","Organic Chemistry 2","Alcohols, Phenols and Ethers","Day 2"]
[null,"Chemistry","Organic Chemistry 2","Alcohols, Phenols and Ethers","Day 3",null,"Maths","Coordinate Geometry","The Pairs of straight Line","Day 2"]
[null,"Maths","Coordinate Geometry","The Pairs of straight Line","Day 3",null,"Physics","Electromagnetism ","Magnetic field of current Element","Day 4"]
[null,"Physics","Electromagnetism ","Magnetic field of current Element","Day 5",null,"Chemistry","Organic Chemistry 2","Alcohols, Phenols and Ethers","Day 4"]
[null,"Online Test Alcohols, Phenols and Ethers",null,null,null,null,"Online test for The pairs of straigh line"]
[null,"Maths","Coordinate Geometry","Circles","Day 1",null,"Physics","Electromagnetism ","Magnetic field of current Element","Day 6"]
[null,"Online test for Magnetic field of current Element",null,null,null,null,"Chemistry","Organic Chemistry 2","Ketones and Aldehydes","Day 1"]
[null,"Chemistry","Organic Chemistry 2","Ketones and Aldehydes","Day 2",null,"Maths","Coordinate Geometry","Circles","Day 2"]
[null,"Maths","Coordinate Geometry","Circles","Day 3",null,"Physics","Electromagnetism ","Magnetic Flux andgauss's law of Magnetism","Day 1"]
[null,"Physics","Electromagnetism ","Magnetic Flux andgauss's law of Magnetism","Day 2",null,"Chemistry","Organic Chemistry 2","Ketones and Aldehydes","Day 3"]
[null,"Chemistry","Organic Chemistry 2","Ketones and Aldehydes","Day 4",null,"Maths","Coordinate Geometry","Circles","Day 4"]
[null,"Maths","Coordinate Geometry","Circles","Day 5",null,"Physics","Electromagnetism ","Magnetic Flux andgauss's law of Magnetism","Day 3"]
[null,"Physics","Electromagnetism ","Magnetic Flux andgauss's law of Magnetism","Day 4",null,"Online Test Ketones and Aldehydes"]
[null,"Chemistry","Organic Chemistry 2","Carboxlic Acid","Day 1",null,"Maths","Coordinate Geometry","Circles","Day 6"]
[null,"Maths","Coordinate Geometry","Circles","Day 7",null,"Physics","Electromagnetism ","Magnetic Flux andgauss's law of Magnetism","Day 5"]
[null,"Online test for  Magnetic Flux andgauss's law of Magnetism",null,null,null,null,"Chemistry","Organic Chemistry 2","Carboxlic Acid","Day 2"]
[null,"Chemistry","Organic Chemistry 2","Carboxlic Acid","Day 3",null,"Maths","Coordinate Geometry","Circles","Day 8"]
[null,"Maths","Coordinate Geometry","Circles","Day 9",null,"Physics","Modern Physics","Atomic Physics","Day 1"]
[null,"Physics","Modern Physics","Atomic Physics","Day 2",null,"Online Test Carboxlic Acid"]
[null,"Chemistry","Organic Chemistry 2","Nitrogen Compounds","Day 1",null,"Online test for Circles"]
[null,"Maths","Coordinate Geometry","Parabola","Day 1",null,"Physics","Modern Physics","Atomic Physics","Day 3"]
[null,"Physics","Modern Physics","Atomic Physics","Day 4",null,"Chemistry","Organic Chemistry 2","Nitrogen Compounds","Day 2"]
[null,"Chemistry","Organic Chemistry 2","Nitrogen Compounds","Day 3",null,"Maths","Coordinate Geometry","Parabola","day 2"]
[null,"Maths","Coordinate Geometry","Parabola","Day 3",null,"Physics","Modern Physics","Atomic Physics","Day 5"]
[null,"Physics","Modern Physics","Atomic Physics","Day 6",null,"Online Test Nitrogen Compounds"]
[null,"Chemistry","Organic Chemistry 2","Biomolecules","Day 1",null,"Maths","Coordinate Geometry","Parabola","day 4"]
[null,"Maths","Coordinate Geometry","Parabola","day 5",null,"Online test for Atomic Physics"]
[null,"Physics","Modern Physics","Nuclear Physics","Day 1",null,"Chemistry","Organic Chemistry 2","Biomolecules","Day 2"]
[null,"Online Test Biomolecules",null,null,null,null,"Online test for Parabola"]
[null,"Maths","Coordinate Geometry","Ellipse","Day 1",null,"Physics","Modern Physics","Nuclear Physics","Day 2"]
[null,"Physics","Modern Physics","Nuclear Physics","Day 3",null,"Chemistry","Organic Chemistry 2","Polymers","Day 1"]
[null,"Chemistry","Organic Chemistry 2","Polymers","Day 2",null,"Maths","Coordinate Geometry","Ellipse","Day 2"]
[null,"Maths","Coordinate Geometry","Ellipse","Day 3",null,"Physics","Modern Physics","Nuclear Physics","Day 4"]
[null,"Online test for Nuclear Physics",null,null,null,null,"Online Test for Polymers"]
[null,"Chemistry","Organic Chemistry 2","Chemistry in Everyday Life","Day 1",null,"Maths","Coordinate Geometry","Ellipse","Day 4"]
[null,"Maths","Coordinate Geometry","Ellipse","Day 5",null,"Physics","Modern Physics","Electronics","Day 1"]
[null,"Physics","Modern Physics","Electronics","Day 2",null,"Chemistry","Organic Chemistry 2","Chemistry in Everyday Life","Day 2"]
[null,"Online Test for Chemistry in Everyday Life",null,null,null,null,"Online test for Ellipse"]
[null,"Maths","Coordinate Geometry","Hyperbola","Day 1",null,"Physics","Modern Physics","Electronics","Day 3"]
[null,"Physics","Modern Physics","Electronics","Day 4",null,"Chemistry","Inorganic Chemistry 2","p-BlockElements and their Compounds","Day 1"]
[null,"Chemistry","Inorganic Chemistry 2","p-BlockElements and their Compounds","Day 2",null,"Maths","Coordinate Geometry","Hyperbola","Day 2"]
[null,"Maths","Coordinate Geometry","Hyperbola","Day 3",null,"Physics","Modern Physics","Electronics","Day 5"]
[null,"Online test for Electronics",null,null,null,null,"Chemistry","Inorganic Chemistry 2","p-BlockElements and their Compounds","Day 3"]
[null,"Chemistry","Inorganic Chemistry 2","p-BlockElements and their Compounds","Day 4",null,"Maths","Coordinate Geometry","Hyperbola","Day 4"]
[null,"Maths","Coordinate Geometry","Hyperbola","Day 5",null,"Physics","Modern Physics","Alternating Current","Day 1"]
[null,"Physics","Modern Physics","Alternating Current","Day 2",null,"Chemistry","Inorganic Chemistry 2","p-BlockElements and their Compounds","Day 5"]
[null,"Chemistry","Inorganic Chemistry 2","p-BlockElements and their Compounds","Day 6",null,"Online test for hyperbola"]
[null,"Maths","Vector & and 3d Geometry","Vectors","Day 1",null,"Online test for Alternating Current"]
[null,"Chemistry","Inorganic Chemistry 2","p-BlockElements and their Compounds","Day 8",null,"Maths","Vector & and 3d Geometry","Vectors","Day 2"]
[null,"Maths","Vector & and 3d Geometry","Vectors","Day 3",null,"Chemistry","Inorganic Chemistry 2","p-BlockElements and their Compounds","Day 7"]
[null,"Chemistry","Inorganic Chemistry 2","p-BlockElements and their Compounds","Day 10",null,"Maths","Vector & and 3d Geometry","Vectors","Day 4"]
[null,"Maths","Vector & and 3d Geometry","Vectors","Day 5",null,"Chemistry","Inorganic Chemistry 2","p-BlockElements and their Compounds","Day 9"]
[null,"Chemistry","Inorganic Chemistry 2","p-BlockElements and their Compounds","Day 12",null,"Maths","Vector & and 3d Geometry","Vectors","Day 6"]
[null,"Maths","Vector & and 3d Geometry","Vectors","Day 7",null,"Chemistry","Inorganic Chemistry 2","p-BlockElements and their Compounds","Day 11"]
[null,"Chemistry","Inorganic Chemistry 2","p-BlockElements and their Compounds","Day 14",null,"Maths","Vector & and 3d Geometry","Vectors","Day 8"]
[null,"Online test for Vectors",null,null,null,null,"Chemistry","Inorganic Chemistry 2","p-BlockElements and their Compounds","Day 13"]
[null,"Chemistry","Inorganic Chemistry 2","p-BlockElements and their Compounds","Day 15",null,"Maths","Vector & and 3d Geometry","Three Dimensional Co-ordinate System","Day 1"]
[null,"Maths","Vector & and 3d Geometry","Three Dimensional Co-ordinate System","Day 2",null,"Chemistry","Inorganic Chemistry 2","p-BlockElements and their Compounds","Day 16"]
[null,"Online test for p-BlockElements and their Compounds",null,null,null,null,"Maths","Vector & and 3d Geometry","Three Dimensional Co-ordinate System","Day 3"]
[null,"Chemistry","Inorganic Chemistry 2","d-BlockElements and their Compounds","Day 1",null,"Maths","Vector & and 3d Geometry","Three Dimensional Co-ordinate System","Day 4"]
[null,"Online test for Three Dimensional Co-ordinate System",null,null,null,null,"Chemistry","Inorganic Chemistry 2","d-BlockElements and their Compounds","Day 2"]
[null,"Chemistry","Inorganic Chemistry 2","d-BlockElements and their Compounds","Day 3",null,"Maths","Vector & and 3d Geometry","Plane ","Day 1"]
[null,"Maths","Vector & and 3d Geometry","Plane ","Day 2",null,"Chemistry","Inorganic Chemistry 2","d-BlockElements and their Compounds","Day 4"]
[null,"Chemistry","Inorganic Chemistry 2","d-BlockElements and their Compounds","Day 5",null,"Maths","Vector & and 3d Geometry","Plane ","Day 3"]
[null,"Online test for Plane ",null,null,null,null,"Chemistry","Inorganic Chemistry 2","d-BlockElements and their Compounds","Day 6"]
[null,"Chemistry","Inorganic Chemistry 2","d-BlockElements and their Compounds","Day 7",null,"Maths","Vector & and 3d Geometry","Sphere ","day 1"]
[null,"Online test for Sphere",null,null,null,null,"Chemistry","Inorganic Chemistry 2","d-BlockElements and their Compounds","Day 8"]
[null,"Online test for d-BlockElements and their Compounds",null,null,null,null,"Chemistry","Inorganic Chemistry 2","Coordination Compounds and Organometallic","Day 1"]
[null,"Chemistry","Inorganic Chemistry 2","Coordination Compounds and Organometallic","Day 2",null,"Chemistry","Inorganic Chemistry 2","Coordination Compounds and Organometallic","Day 3"]
[null,"Chemistry","Inorganic Chemistry 2","Coordination Compounds and Organometallic","Day 4",null,"Chemistry","Inorganic Chemistry 2","Coordination Compounds and Organometallic","Day 5"]
[null,"Chemistry","Inorganic Chemistry 2","Coordination Compounds and Organometallic","Day 6",null,"Chemistry","Inorganic Chemistry 2","Coordination Compounds and Organometallic","Day 7"]
[null,"Chemistry","Inorganic Chemistry 2","Coordination Compounds and Organometallic","Day 8",null,"Online test for  Coordination Compounds and Organometallic"]

{"sheet":"11th2months","index":3,"n_rows":68,"n_cols":10,"rows_kept":68,"cut":false,"hidden":true,"merged":[[55,6,55,9],[67,1,67,4],[67,6,67,9],[1,1,1,4],[1,6,1,9],[2,5,67,5],[13,1,13,4],[28,6,28,9],[29,6,29,9],[38,1,38,4],[47,6,47,9],[48,6,48,9],[53,1,53,4]]}
["Date","Subject","Unit","Chapter","Lecture",null,"Subject","Unit","Chapter","Lecture"]
[null,"Morning (Time Slot 1)",null,null,null,null,"Evening (Time Slot 2)"]
[null,"Physics","Mechanics ","Kinematics ","Day 1 & Day 2 ",null,"Chemistry","Physical Chemistry 1","Basic concept of Chemistry","Day 1 & Day 2 "]
[null,"Chemistry","Physical Chemistry 1","Basic concept of Chemistry","Day 3 & Day 4 ",null,"Maths","Triganometry ","Trignometirc Functions and Identities","Day 1 & Day 2 "]
[null,"Maths","Triganometry ","Trignometirc Functions and Identities","Day 3  ",null,"Physics","Mechanics ","Kinematics ","Day 3 & Day 4 "]
[null,"Physics","Mechanics ","Kinematics ","Day 5 & Day 6 ",null,"Chemistry","Physical Chemistry 1","Basic concept of Chemistry","Day 5 & Day 6 "]
[null,"Chemistry","Physical Chemistry 1","Properties of Gases","Day 1 & Day 2 ",null,"Maths","Triganometry ","Trignometirc Functions and Identities","Day 4 & Day 5 "]
[null,"Maths","Triganometry ","Trignometirc Equations ","Day 1 & Day 2 ",null,"Physics","Mechanics ","Kinematics ","Day 7  & Day 8 "]
[null,"Physics","Mechanics ","Kinematics ","Day 9",null,"Chemistry","Physical Chemistry 1","Properties of Gases","Day 3 & Day 4 "]
[null,"Chemistry","Physical Chemistry 1","Properties of Gases","Day 5 & Day 6 ",null,"Maths","Triganometry ","Trignometirc Equations ","Day 3  "]
[null,"Maths","Triganometry ","Trignometirc Equations ","Day 4 & Day 5",null,"Physics","Mechanics ","Kinematics ","Day 10 & Day 11"]
[null,"Physics","Mechanics ","Dynamics ","Day 1",null,"Chemistry","Physical Chemistry 1","Properties of Gases","Day 5 & Day 6 "]
[null,"Chemistry","Physical Chemistry 1","Thermodynamics","Day 1 & Day 2 ",null,"Maths","Triganometry ","Logarithms and Their Properties","Day 1  "]
[null,"Online Unit Test for Trignometry",null,null,null,null,"Physics","Mechanics ","Dynamics","Day 1"]
[null,"Physics","Mechanics ","Dynamics","Day 3 & Day 4 ",null,"Chemistry","Physical Chemistry 1","Thermodynamics ","Day 3 & Day 4 "]
[null,"Chemistry","Physical Chemistry 1","Thermodynamics","Day 5 & Day 6 ",null,"Maths","Algebra ","Complex Number","Day 1 & Day 2 "]
[null,"Maths","Algebra ","Complex Number","Day 3 & Day 4 ",null,"Physics","Mechanics ","Circular Motion ","Day 1 & Day 2 "]
[null,"Physics","Mechanics ","Circular Motion ","Day 3 & Day 4 ",null,"Chemistry","Physical Chemistry 1","Thermodynamics ","Day 5 & Day 6 "]
[null,"Chemistry","Physical Chemistry 1","Thermodynamics ","Day 7 & Day 8",null,"Maths","Algebra ","Complex Number","Day 3 & Day 4 "]
[null,"Maths","Algebra ","Complex Number","Day 5  ",null,"Physics","Mechanics ","Centre of Mass Momentum and Work Energy","Day 1 & Day 2 "]
[null,"Physics","Mechanics ","Centre of Mass Momentum and Work Energy","Day 3 & Day 4 ",null,"Chemistry","Physical Chemistry 1","Redox Reaction & Electromotive Force ","Day 1 & Day 2 "]
[null,"Chemistry","Physical Chemistry 1","Redox Reaction & Electromotive Force ","Day 3 & Day 4 ",null,"Maths","Algebra ","Complex Number","Day 6 & Day 7"]
[null,"Maths","Algebra ","Theory of Quadratic Equations ","Day 1  ",null,"Physics","Mechanics ","Centre of Mass Momentum and Work Energy","Day 5  "]
[null,"Physics","Mechanics ","Centre of Mass Momentum and Work Energy","Day 6 & Day 7",null,"Chemistry","Physical Chemistry 1","Structur of Atom","Day 1 & Day 2 "]
[null,"Chemistry","Physical Chemistry 1","Structur of Atom","Day 3 & Day 4 ",null,"Maths","Algebra ","Theory of Quadratic Equations ","Day 2 & Day 3"]
[null,"Maths","Algebra ","Permutations and Combinations ","Day 1",null,"Physics","Mechanics ","Rotation ","Day 1 & Day 2 "]
[null,"Physics","Mechanics ","Rotation ","Day 3 & Day 4 ",null,"Chemistry","Physical Chemistry 1","Solid States","Day 1 & Day 2"]
[null,"Chemistry","Physical Chemistry 1","Solid States","Day 3 & Day 4",null,"Maths","Algebra ","Permutations and Combinations ","Day 2 & Day 3"]
[null,"Maths","Algebra ","Probability","Day 1",null,"Online Test of Unit Mechanics "]
[null,"Physics","Thermal Physics ","Thermometry ","Day 1 & Day 2 ",null,"Online Test for Unit Physical Chemistry 1"]
[null,"Chemistry","Inorganic Chemistry 1","Basic concept of Periodic Table ","Day 1 & Day 2 ",null,"Maths","Algebra ","Probability","Day 2 & Day 3"]
[null,"Maths","Algebra ","Progression and Series","Day 1",null,"Physics","Thermal Physics ","Thermometry ","Day 3 & Day 4 "]
[null,"Physics","Thermal Physics ","Thermometry ","Day 5 & Day 6 ",null,"Chemistry","Inorganic Chemistry 1","Basic concept of Periodic Table ","Day 3 & Day 4 "]
[null,"Chemistry","Inorganic Chemistry 1","Basic concept of Periodic Table ","Day 5 & Day 6 ",null,"Maths","Algebra ","Progression and Series","Day 2 & Day 3"]
[null,"Maths","Algebra ","Binomial Theorem","Day 1",null,"Physics","Thermal Physics ","Thermodynamics ","Day 1 & Day 2 "]
[null,"Physics","Thermal Physics ","Thermodynamics ","Day 3 & Day 4",null,"Chemistry","Inorganic Chemistry 1","Metallurgy","Day 1 & Day 2"]
[null,"Chemistry","Inorganic Chemistry 1","Metallurgy","Day 3 & Day 4",null,"Maths","Algebra ","Binomial Theorem","Day 2 & Day 3"]
[null,"Maths","Algebra ","Determinants","Day 1 & Day 2 ",null,"Physics","Thermal Physics ","Heat Transfer ","Day 1 & Day 2 and (School Level)"]
[null,"Online Unit Test for Thermal Physics ",null,null,null,null,"Chemistry","Inorganic Chemistry 1","Metallurgy","Day 5"]
[null,"Chemistry","Inorganic Chemistry 1","Metallurgy","Day 6 & Day 7",null,"Maths","Algebra ","Determinants","Day 3 & Day 4 "]
[null,"Maths","Algebra ","Metrices","Day 1 & Day 2 ",null,"Physics","Fluid Mechanics & Waves","Fluid","Day 1 & Day 2"]
[null,"Physics","Fluid Mechanics & Waves","Fluid","Day 2 & Day 3 ",null,"Chemistry","Inorganic Chemistry 1","s-Block Elements ","Day 1 & Day 2 "]
[null,"Chemistry","Inorganic Chemistry 1","s-Block Elements ","Day 3 & Day 4",null,"Maths","Algebra ","Metrices","Day 3 & Day 4"]
[null,"Maths","Algebra ","Mean and Variance","Day 1 & Day 2 ",null,"Physics","Fluid Mechanics & Waves","Fluid","Day 5 & Day 6 "]
[null,"Physics","Fluid Mechanics & Waves","Waves ","Day 1 & Day 2 ",null,"Chemistry","Inorganic Chemistry 1","s-Block Elements ","Day 5"]
[null,"Chemistry","Inorganic Chemistry 1","s-Block Elements ","Day 6 & Day 7",null,"Maths","Algebra ","Linear Programming ","Day 1"]
[null,"Maths","Algebra ","Linear Programming ","Day 2 & Day 3 ",null,"Physics","Fluid Mechanics & Waves","Waves ","Day 2 & Day 3"]
[null,"Physics","Fluid Mechanics & Waves","Waves ","Day 5 & Day 6 ",null," Online Unit Test for Inorganic Chemistry 1"]
[null,"Chemistry","Organic Chemistry 1","Fundamental concepts of Orgnaic Chemistry ","Day 1 & Day 2 ",null," Online Unit Test for Algebra "]
[null,"Maths","Differential Calculus ","Fundamental and Functions ","Day 1 & Day 2 ",null,"Physics","Fluid Mechanics & Waves","Simple Harmonic Motion ","Day 1 & Day 2"]
[null,"Physics","Fluid Mechanics & Waves","Simple Harmonic Motion ","Day 3 & Day 4",null,"Chemistry","Organic Chemistry 1","Fundamental concepts of Orgnaic Chemistry ","Day 3 & Day 4 "]
[null,"Chemistry","Organic Chemistry 1","Fundamental concepts of Orgnaic Chemistry ","Day 5 & Day 6 ",null,"Maths","Differential Calculus ","Fundamental and Functions ","Day 3 & Day 4 "]
[null,"Maths","Differential Calculus ","Fundamental and Functions ","Day 5 & Day 6 ",null,"Physics","Fluid Mechanics & Waves","Gravitation and Satellite ","Day 1 & Day 2 "]
[null,"Online Test for Fluid Mechanics & Waves",null,null,null,null,"Chemistry","Organic Chemistry 1","Fundamental concepts of Orgnaic Chemistry ","Day 7  & Day 8 "]
[null,"Chemistry","Organic Chemistry 1","Fundamental concepts of Orgnaic Chemistry ","Day 9 & Day 10 ",null,"Maths","Differential Calculus ","Limit","Day 1 & Day 2"]
[null,"Maths","Differential Calculus ","Limit","Day 3 & Day 4",null,"Online Unit Test for Organic Chemistry 1"]
[null,"Chemistry","Organic Chemistry 2","Basic Organic Chemistry ","Day 1 & Day 2 ",null,"Maths","Differential Calculus ","Continuity and Differentiability","Day 1"]
[null,"Maths","Differential Calculus ","Continuity and Differentiability","Day 2 & Day 3 ",null,"Chemistry","Organic Chemistry 2","Basic Organic Chemistry ","Day 3 & Day 4"]
[null,"Chemistry","Organic Chemistry 2","Basic Organic Chemistry ","Day 5 & Day 6 ",null,"Maths","Differential Calculus ","Differentiation ","Day 1 & Day 2"]
[null,"Maths","Differential Calculus ","Differentiation ","Day 3 & Day 4",null,"Chemistry","Organic Chemistry 2","Basic Organic Chemistry ","Day 7  "]
[null,"Chemistry","Organic Chemistry 2","Basic Organic Chemistry ","Day 8 & Day 9",null,"Maths","Differential Calculus ","Application and Derivatives  \nTangents and Normals","Day 1\nDay 1"]
[null,"Maths","Differential Calculus ","Tangents and Normals ","Day 2  ",null,"Chemistry","Organic Chemistry 2","Reaction Mechanism","Day 1 & Day 2 "]
[null,"Chemistry","Organic Chemistry 2","Reaction Mechanism","Day 3 & Day 4",null,"Maths","Differential Calculus ","Monotoncity","Day 1"]
[null,"Maths","Differential Calculus ","Monotoncity","Day 2 & Day 3 ",null,"Chemistry","Organic Chemistry 2","Reaction Mechanism","Day 5 & Day 6 "]
[null,"Chemistry","Organic Chemistry 2","Hydrocarbon","Day 1 & Day 2 ",null,"Maths","Differential Calculus ","Maxima Minima","Day 1 & Day 2"]
[null,"Maths","Differential Calculus ","Maxima Minima","Day 3 & Day 4",null,"Chemistry","Organic Chemistry 2","Hydrocarbon","Day 3"]
[null,"Chemistry","Organic Chemistry 2","Hydrocarbon","Day 4 & Day 5",null,"Maths","Differential Calculus ","Graphical Transformation ","Day 1"]
[null,"Online Unit Test for Differential Calculus ",null,null,null,null,"Online Unit Test for Organic Chemistry 2"]

{"sheet":"12th2months","index":4,"n_rows":74,"n_cols":10,"rows_kept":74,"cut":false,"hidden":true,"merged":[[58,1,58,4],[70,1,70,4],[73,1,73,4],[1,1,1,4],[1,6,1,9],[2,5,73,5],[13,6,13,9],[22,1,22,4],[26,1,26,4],[27,1,27,4],[41,1,41,4],[56,1,56,4],[57,1,57,4]]}
["Date","Subject","Unit","Chapter","Lecture",null,"Subject","Unit","Chapter","Lecture"]
[null,"Morning (Time Slot 1)",null,null,null,null,"Evening (Time Slot 2)"]
[null,"Physics","Optics","Reflection","Day 1 & 2",null,"Chemistry","Physical Chemistry part 2","Chemical Kinetics","Day 1 & 2"]
[null,"Chemistry","Physical Chemistry part 2","Chemical Kinetics","Day 3 & 4",null,"Maths","Integral Calculas","Indefinite Integral","Day 1 & 2"]
[null,"Maths","Integral Calculas","Indefinite Integral","Day 3 & 4",null,"Physics","Optics","Reflection","Day 3 & 4"]
[null,"Physics","Optics","Refraction","Day 1 & 2",null,"Chemistry","Physical Chemistry part 2","Chemical Kinetics","Day 5"]
[null,"Chemistry","Physical Chemistry part 2","Chemical Equilibrium","Day 1 & 2",null,"Maths","Integral Calculas","Indefinite Integral","Day 5 & 6"]
[null,"Maths","Integral Calculas","Indefinite Integral","Day 7 & 8",null,"Physics","Optics","Refraction","Day 3"]
[null,"Physics","Optics","Refraction","Day 4 & 5",null,"Chemistry","Physical Chemistry part 2","Chemical Equilibrium","Day 3"]
[null,"Chemistry","Physical Chemistry part 2","Chemical Equilibrium","Day 4 & 5",null,"Maths","Integral Calculas","Indefinite Integral","Day 9"]
[null,"Maths","Integral Calculas","Indefinite Integral","Day 10 & 11",null,"Physics","Optics","Wave Optics","Day 1"]
[null,"Physics","Optics","Wave Optics","Day 2",null,"Chemistry","Physical Chemistry part 2","Ionic Equilibrium ","Day 1 & 2"]
[null,"Chemistry","Physical Chemistry part 2","Ionic Equilibrium ","Day 3 & 4",null,"Maths","Integral Calculas","Definite Integral","Day 1 & 2"]
[null,"Maths","Integral Calculas","Definite Integral","Day 3 & 4",null,"Optics Unit Test"]
[null,"Physics","Electrostatics and Current Electricity","Electrostatics","Day 1 & 2",null,"Chemistry","Physical Chemistry part 2","Ionic Equilibrium ","Day 5 & 6"]
[null,"Chemistry","Physical Chemistry part 2","Electrolysis and Electrolitic Conductance ","Day 1 & 2",null,"Maths","Integral Calculas","Definite Integral","Day 5"]
[null,"Maths","Integral Calculas","Area ","Day 1",null,"Physics","Electrostatics and Current Electricity","Electrostatics","Day 3 & 4"]
[null,"Physics","Electrostatics and Current Electricity","Electrostatics","Day 5 & 6",null,"Chemistry","Physical Chemistry part 2","Electrolysis and Electrolitic Conductance ","Day 3"]
[null,"Chemistry","Physical Chemistry part 2","Ideal Solutions ","Day 1 & 2",null,"Maths","Integral Calculas","Area ","Day 2 & 3"]
[null,"Maths","Integral Calculas","Differential Equation ","Day 1 & 2",null,"Physics","Electrostatics and Current Electricity","Capacitor","Day 1 & 2"]
[null,"Physics","Electrostatics and Current Electricity","Capacitor","Day 3 & 4",null,"Chemistry","Physical Chemistry part 2","Ideal Solutions ","Day 3 & 4"]
[null,"Chemistry","Physical Chemistry part 2","Ideal Solutions ","Day 5 & 6",null,"Maths","Integral Calculas","Differential Equation ","day 3"]
[null,"Integral Calculas Unit Test",null,null,null,null,"Physics","Electrostatics and Current Electricity","Current Electricity","Day 1 & 2"]
[null,"Physics","Electrostatics and Current Electricity","Current Electricity","Day 3",null,"Chemistry","Physical Chemistry part 2","Surface Chemistry","Day 1 & 2"]
[null,"Chemistry","Physical Chemistry part 2","Surface Chemistry","Day 3 ",null,"Maths","Coordinate Geometry","Coordinate Geometry Systems and Coordinate Geometrys","Day 1 & 2"]
[null,"Maths","Coordinate Geometry","Coordinate Systems and Coordinates","Day 3 & 4",null,"Physics","Electrostatics and Current Electricity","Current Electricity","Day 4 & 5"]
[null,"Electrostatics and Current Electricity Unit Test",null,null,null,null,"Chemistry","Physical Chemistry part 2","Surface Chemistry","Day 4"]
[null,"Physical Chemistry part 2 Unit Test",null,null,null,null,"Maths","Coordinate Geometry","Coordinate Systems and Coordinates","Day 5"]
[null,"Maths","Coordinate Geometry","The Straight Lines","Day 1 & 2",null,"Physics","Electro Magnetic","Moving Charge in Magnetic Field","Day 1 & 2"]
[null,"Physics","Electro Magnetic","Moving Charge in Magnetic Field","Day 3 & 4",null,"Chemistry","Inorganic Chemistry Part 2","p-Block Elements and their Compounds ","Day 1 & 2"]
[null,"Chemistry","Inorganic Chemistry Part 2","p-Block Elements and their Compounds ","Day 3 & 4",null,"Maths","Coordinate Geometry","The Straight Lines","Day 3 & 4"]
[null,"Maths","Coordinate Geometry","The Straight Lines","Day 5",null,"Physics","Electro Magnetic","Moving Charge in Magnetic Field","Day 5"]
[null,"Physics","Electro Magnetic","Magnetic field of Current Element","Day 1 & 2",null,"Chemistry","Inorganic Chemistry Part 2","p-Block Elements and their Compounds ","Day 5 & 6"]
[null,"Chemistry","Inorganic Chemistry Part 2","p-Block Elements and their Compounds ","Day 7 & 8",null,"Maths","Coordinate Geometry","The Straight Lines","Day 6"]
[null,"Maths","Coordinate Geometry","The Pair of Straight Lines","Day 1  & 2",null,"Physics","Electro Magnetic","Magnetic field of Current Element","Day 3 & 4"]
[null,"Physics","Electro Magnetic","Magnetic field of Current Element","Day 5 & 6",null,"Chemistry","Inorganic Chemistry Part 2","p-Block Elements and their Compounds ","Day 9 & 10"]
[null,"Chemistry","Inorganic Chemistry Part 2","p-Block Elements and their Compounds ","Day 11 & 12",null,"Maths","Coordinate Geometry","The Pair of Straight Lines","Day 3"]
[null,"Maths","Coordinate Geometry","Circles","Day 1 & 2",null,"Physics","Electro Magnetic","Magnetic Flux and Gauss's law of Magnetism","Day 1 & 2"]
[null,"Physics","Electro Magnetic","Magnetic Flux and Gauss's law of Magnetism","Day 3",null,"Chemistry","Inorganic Chemistry Part 2","p-Block Elements and their Compounds ","Day 13 & 14"]
[null,"Chemistry","Inorganic Chemistry Part 2","p-Block Elements and their Compounds ","Day 15",null,"Maths","Coordinate Geometry","Circles","Day 3 & 4"]
[null,"Maths","Coordinate Geometry","Circles","Day 5 & 6",null,"Physics","Electro Magnetic","Magnetic Flux and Gauss's law of Magnetism","Day 4 & 5"]
[null,"Electro Magnetic unit Test",null,null,null,null,"Chemistry","Inorganic Chemistry Part 2","p-Block Elements and their Compounds ","Day 16"]
[null,"Chemistry","Inorganic Chemistry Part 2","d-Block Elements and their Compounds","Day 1 & 2",null,"Maths","Coordinate Geometry","Circles","Day 7 & 8"]
[null,"Maths","Coordinate Geometry","Circles","Day 9",null,"Physics","Modern Physics","Atomic Physics","Day 1 & 2"]
[null,"Physics","Modern Physics","Atomic Physics","Day 3 & 4",null,"Chemistry","Inorganic Chemistry Part 2","d-Block Elements and their Compounds","Day 3 & 4"]
[null,"Chemistry","Inorganic Chemistry Part 2","d-Block Elements and their Compounds","Dqay 5 & 6",null,"Maths","Coordinate Geometry","Parabola","Day 1 & 2"]
[null,"Maths","Coordinate Geometry","Parabola","Day 3 & 4",null,"Physics","Modern Physics","Atomic Physics","Day 5 & 6"]
[null,"Physics","Modern Physics","Nuclear Physics","Day 1 & 2",null,"Chemistry","Inorganic Chemistry Part 2","d-Block Elements and their Compounds","Day 7"]
[null,"Chemistry","Inorganic Chemistry Part 2","d-Block Elements and their Compounds","Day 8",null,"Maths","Coordinate Geometry","Parabola","Day 5"]
[null,"Maths","Coordinate Geometry","Ellipse","Day 1 & 2",null,"Physics","Modern Physics","Nuclear Physics","Day 3 & 4"]
[null,"Physics","Modern Physics","Electronics","Day 1 & 2",null,"Chemistry","Inorganic Chemistry Part 2","Coordination Compounds and Organometallic","Day 1 & 2"]
[null,"Chemistry","Inorganic Chemistry Part 2","Coordination Compounds and Organometallic","Day 3 & 4",null,"Maths","Coordinate Geometry","Ellipse","Day 3 & 4"]
[null,"Maths","Coordinate Geometry","Ellipse","Day 5",null,"Physics","Modern Physics","Electronics","Day 3"]
[null,"Physics","Modern Physics","Electronics","Day 4 & 5",null,"Chemistry","Inorganic Chemistry Part 2","Coordination Compounds and Organometallic","Day 5 & 6"]
[null,"Chemistry","Inorganic Chemistry Part 2","Coordination Compounds and Organometallic","Day 7",null,"Maths","Coordinate Geometry","Hyperbola","Day 1 & 2"]
[null,"Maths","Coordinate Geometry","Hyperbola","Day 3 & 4",null,"Physics","Modern Physics","Alternating Current","Day 1 & 2"]
[null,"Modern Physics Unit Test",null,null,null,null,"Chemistry","Inorganic Chemistry Part 2","Coordination Compounds and Organometallic","Day 8"]
[null,"Inorganic Chemistry Part 2 Unit Test",null,null,null,null,"Maths","Coordinate Geometry","Hyperbola","Day 5"]
[null,"Coordinate Geometry Unit Test",null,null,null,null,"Chemistry","Organic Chemistry Part 2","Halogens Compounds","Day 1 & 2"]
[null,"Chemistry","Organic Chemistry Part 2","Halogens Compounds","Day 3",null,"Maths","Vector & 3D","Vectors ","Day 1 & 2"]
[null,"Maths","Vector & 3D","Vectors ","Day 3 & 4",null,"Chemistry","Organic Chemistry Part 2","Alcohols, Phenols and Ethers","Day 1 & 2"]
[null,"Chemistry","Organic Chemistry Part 2","Alcohols, Phenols and Ethers","Day 3",null,"Maths","Vector & 3D","Vectors ","Day 5"]
[null,"Maths","Vector & 3D","Vectors ","Day 6 & 7",null,"Chemistry","Organic Chemistry Part 2","Alcohols, Phenols and Ethers","Day 4"]
[null,"Chemistry","Organic Chemistry Part 2","Ketones and Aldehydes","Day 1 & 2",null,"Maths","Vector & 3D","Vectors ","Day 8"]
[null,"Maths","Vector & 3D","Three Dimensional Co-ordinate System","Day 1 & 2",null,"Chemistry","Organic Chemistry Part 2","Ketones and Aldehydes","Day 3"]
[null,"Chemistry","Organic Chemistry Part 2","Ketones and Aldehydes","Day 4",null,"Maths","Vector & 3D","Three Dimensional Co-ordinate System","Day 3"]
[null,"Maths","Vector & 3D","Three Dimensional Co-ordinate System","Day 4",null,"Chemistry","Organic Chemistry Part 2","Carboxylic Acid","Day 1 & 2"]
[null,"Chemistry","Organic Chemistry Part 2","Carboxylic Acid","Day 3",null,"Maths","Vector & 3D","Plane","Day 1"]
[null,"Maths","Vector & 3D","Plane","Day 2 & 3",null,"Chemistry","Organic Chemistry Part 2","Nitrogen Compounds","Day 1 & 2"]
[null,"Chemistry","Organic Chemistry Part 2","Nitrogen Compounds","Day 3",null,"Maths","Vector & 3D","Sphere","Day 1"]
[null,"Vector & 3D Unit Test",null,null,null,null,"Chemistry","Organic Chemistry Part 2","Biomolecules","Day 1"]
[null,"Chemistry","Organic Chemistry Part 2","Biomolecules","Day 2",null,"Chemistry","Organic Chemistry Part 2","Polymers","Day 1"]
[null,"Chemistry","Organic Chemistry Part 2","Polymers","Day 2",null,"Chemistry","Organic Chemistry Part 2","Chemistry in Everyday Life","Day 1 & 2"]
[null,"Organic Chemistry Part 2 Unit Test"]

{"sheet":"11th24days","index":5,"n_rows":25,"n_cols":10,"rows_kept":25,"cut":false,"hidden":true,"merged":[[1,1,1,4],[1,6,1,9],[2,5,24,5]]}
["Date","Subject","Unit","Chapter","Lecture",null,"Subject","Unit","Chapter","Lecture"]
[null,"Morning (Time Slot 1)",null,null,null,null,"Evening (Time Slot 2)"]
[null,"Physics","Mechanics ","Kinematics ","Day 1 & Day 4 ",null,"Physics","Mechanics ","Kinematics ","Day 5 & Day 9 "]
[null,"Chemistry","Physical Chemistry 1","Basic concept of Chemistry","Day 1 & Day 6 ",null,"Chemistry","Physical Chemistry 1","Properties of Gases","Day 1 & Day 6 "]
[null,"Maths","Triganometry ","Trignometirc Functions and Identities","Day 1 & Day 5",null,"Maths","Triganometry ","Trignometirc Equations ","Day 1 & Day 5 "]
[null,"Physics","Mechanics ","Kinematics ","Day 10 & Day 11",null,"Physics","Mechanics ","Dynamics ","Day 1 & Day 3"]
[null,"Chemistry","Physical Chemistry 1","Redox Reaction & Electromotive Force ","Day 1 & Day 4 ",null,"Chemistry","Physical Chemistry 1","Thermodynamics","Day 1 & Day 4 "]
[null,"Maths","Triganometry ","Logarithms and Their Properties","Day 1",null,"Physics","Mechanics ","Circular Motion ","Day 1 & Day 4 "]
[null,"Chemistry","Physical Chemistry 1","Thermodynamics","Day 5 & Day 8",null,"Chemistry","Physical Chemistry 1",{"$f":"$I$20","v":"Differentiation "},"Day 1 & Day 4 "]
[null,"Maths","Algebra ","Complex Number","Day 1  & Day 7 ",null,"Maths","Algebra ","Binomial Theorem\nLinear Programming ","Day 1 & Day 3\nDay 1 & Day 3"]
[null,"Physics","Mechanics ","Rotation ","Day 1 & Day 4 ",null,"Physics","Mechanics ","Centre of Mass Momentum and Work Energy","Day 1 & Day 7 "]
[null,"Chemistry","Physical Chemistry 1","Structur of Atom","Day 1 & Day 4 ",null,"Chemistry","Inorganic Chemistry 1","Basic concept of Periodic Table ","Day 1 & Day 6 "]
[null,"Maths","Algebra ","Theory of Quadratic Equations \nProgression and Series","Day 1 & Day 3\nDay 1 & Day 3",null,"Maths","Algebra ","Permutations and Combinations \nProbability","Day 1 & Day 3\nDay 1 & Day 3"]
[null,"Physics","Thermal Physics ","Thermometry ","Day 1 & Day 6 ",null,"Physics","Thermal Physics ","Thermodynamics ","Day 1 & Day 4\n"]
[null,"Chemistry","Inorganic Chemistry 1","Metallurgy","Day 1 & Day 7 ",null,"Maths","Algebra ","Determinants","Day 1 & Day 4"]
[null,"Maths","Algebra ","Metrices and Mean and Variance","Day 1 & Day 4\nDay 1 & Day 2 ",null,"Chemistry","Organic Chemistry 1","Fundamental concepts of Orgnaic Chemistry ","Day 1 & Day 5"]
[null,"Physics","Fluid Mechanics & Waves","Fluid","Day 1 & Day 6 ",null,"Maths","Differential Calculus ","Fundamental and Functions ","Day 1 & Day 6\n "]
[null,"Chemistry","Organic Chemistry 1","Fundamental concepts of Orgnaic Chemistry ","Day 6 & Day 10",null,"Chemistry","Organic Chemistry 2","Basic Organic Chemistry ","Day 1 & Day 5"]
[null,"Maths","Differential Calculus ","Limit","Day 1 & Day 4 ",null,"Physics","Fluid Mechanics & Waves","Simple Harmonic Motion ","Day 1 & Day 4\n "]
[null,"Physics","Fluid Mechanics & Waves","Waves ","Day 1 & Day 6 ",null,"Maths","Differential Calculus ","Differentiation ","Day 1 & Day 4"]
[null,"Chemistry","Organic Chemistry 2","Basic Organic Chemistry ","Day 6 & Day 9",null,"Physics","Fluid Mechanics & Waves","Gravitation and Satellite ","Day 1 & Day 2 "]
[null,"Maths","Differential Calculus ","Maxima Minima","Day 1 & Day 4 ",null,"Maths","Differential Calculus ","Monotoncity","Day 1 & Day 3"]
[null,"Chemistry","Organic Chemistry 2","Reaction Mechanism","Day 1 & Day 6 ",null,"Chemistry","Organic Chemistry 2","Hydrocarbon","Day 1 & Day 5"]
[null,"Maths","Differential Calculus ","Continuity and Differentiability","Day 1 & Day 3",null,"Maths","Differential Calculus ","Tangents and Normals ","Day 1 & Day 2 "]
[null,"Physics","Thermal Physics "," Heat Transfer","Day 1 & Day 2 ",null,"Maths","Differential Calculus ","Graphical Transformation ","Day 1"]

{"sheet":"12th24days","index":6,"n_rows":26,"n_cols":10,"rows_kept":26,"cut":false,"hidden":true,"merged":[[1,1,1,4],[1,6,1,9],[2,5,25,5]]}
["Date","Subject","Unit","Chapter","Lecture",null,"Subject","Unit","Chapter","Lecture"]
[null,"Morning (Time Slot 1)",null,null,null,null,"Evening (Time Slot 2)"]
[null,"Maths","Intgral Calculas","Indefinite Integral","Day 1 to Day 6",null,"Physics","Optics","Wave Optics","Day 1 to Day 2"]
[null,"Physics","Optics","Reflection","Day 1 to Day 4",null,"Chemistry","Physical Chemistry part 2","Ionic Equilibrium ","Day 1 to Day 6"]
[null,"Chemistry","Physical Chemistry part 2","Surface Chemistry","Day 1 to Day 4",null,"Maths","Intgral Calculas","Indefinite Integral","Day 7 to Day 11"]
[null,"Maths","Intgral Calculas","Area ","Day 1 to Day 2",null,"Physics","Optics","Refreaction","Day 1 to Day 5"]
[null,"Physics","Electrostaics and Current Electricity","Electrostatics","Day 1 to Day 6",null,"Chemistry","Physical Chemistry part 2","Ideal Solutions ","Day 1 to Day 6"]
[null,"Chemistry","Physical Chemistry part 2","Electrolysis and Electrolitic Conductance ","Day 1 to Day 3",null,"Maths","Intgral Calculas","Differential Equation ","Day 1 to Day 3"]
[null,"Maths","Coordinate Geometry","Coordinate Systems and Coordinates","Day 1 to Day 5",null,"Maths","Intgral Calculas","Definite Integral","Day 1 to Day 5"]
[null,"Physics","Electrostaics and Current Electricity","Capacitor","Day 1 to Day 4",null,"Chemistry","Physical Chemistry part 2","Chemical Kinetics","Day 1 to Day 5"]
[null,"Chemistry","Physical Chemistry part 2","Chemical Equilibrium ","Day 1 to Day 5",null,"Physics","Electrostaics and Current Electricity","Current Electricity","Day 1 to Day 4"]
[null,"Maths","Coordinate Geometry","Circles","Day 1 to Day 5",null,"Physics","Electromagnetism","Moving Charge in Magnetic Field","Day 1 to Day 5"]
[null,"Physics","Electromagnetism","Magnetic Flux and Gauss's law of Magnetism","Day 1 to Day 5",null,"Chemistry","Inorganic Chemistry Part 2","p-Block Elements and their Compounds ","Day 1 to Day 5"]
[null,"Chemistry","Inorganic Chemistry Part 2","p-Block Elements and their Compounds ","Day 6 to Day 10",null,"Maths","Coordinate Geometry","Hyperbola","Day 1 to Day 6"]
[null,"Maths","Coordinate Geometry","Parabola","Day 1 to Day 6",null,"Physics","Electromagnetism","Magnetic field of Current Element","Day 1 to Day 6"]
[null,"Physics","Modern Physics","Alternating Current","Day 1 to Day 2",null,"Chemistry","Inorganic Chemistry Part 2","p-Block Elements and their Compounds ","Day 11 to Day 16"]
[null,"Chemistry","Inorganic Chemistry Part 2","d-Block Elements and their Compounds ","Day 1 to Day 4",null,"Maths","Coordinate Geometry","The Pair of Straight Lines","Day 1 to Day 4"]
[null,"Maths","Coordinate Geometry","The Straight Lines","Day 1 to Day 7",null,"Physics","Modern Physics","Atomic Physics","Day 1 to Day 6"]
[null,"Physics","Modern Physics","Electronics","Day 1 to Day 5",null,"Chemistry","Inorganic Chemistry Part 2","Coordination Compounds and Organometallic","Day 1 to Day 4"]
[null,"Chemistry","Inorganic Chemistry Part 2","Coordination Compounds and Organometallic","Day 5 to Day 8",null,"Maths","Vector to 3D Geometry","Vectors ","Day 1 to Day 4"]
[null,"Maths","Vector to 3D Geometry","Vectors ","Day 5 to Day 8",null,"Physics","Modern Physics","Nuclear Physics","Day 1 to Day 4"]
[null,"Chemistry","Inorganic Chemistry Part 2","d-Block Elements and their Compounds ","Day 5 to Day 8",null,"Chemistry","Organic Chemistry Part 2","Halogens Compounds","Day 1 to 3"]
[null,"Chemistry","Organic Chemistry Part 2","Alcohols, Phenols and Ethers","Day 1 to Day 4",null,"Maths","Vector to 3D Geometry","Three Dimensional Co-ordinate System","Day 1 to Day 4"]
[null,"Chemistry","Organic Chemistry Part 2","Ketones and Aldehydes","Day 1 to Day 4",null,"Chemistry","Organic Chemistry Part 2","Carboxylic Acid","Day 1 to Day 3"]
[null,"Maths","Vector to 3D Geometry","Plane","Day 1 to Day 3",null,"Chemistry","Organic Chemistry Part 2","Nitrogen Compounds","Day 1 to Day 3"]
[null,"Chemistry","Organic Chemistry Part 2","Biomolecules","Day 1 to Day 2",null,"Chemistry","Organic Chemistry Part 2","Polymers","Day 1 to Day 2"]

{"sheet":"Working","index":7,"n_rows":7,"n_cols":6,"rows_kept":7,"cut":false,"hidden":true,"merged":[]}
["Course List","Sheet Name",null,"Sun",true,{"$f":"IF(E1=TRUE,1,\"na\")","v":1}]
["1st Time 11th syllabus in 4 Months","11th4months",null,"Mon",true,{"$f":"IF(E2=TRUE,2,\"na\")","v":2}]
["11th revision in 2 Months","11th2months",null,"Tue",true,{"$f":"IF(E3=TRUE,3,\"na\")","v":3}]
["11th Fast Track in 24 days","11th24days",null,"Wed",true,{"$f":"IF(E4=TRUE,4,\"na\")","v":4}]
["1st Time  12th syllabus in 4 Months","12th4months",null,"Thu",true,{"$f":"IF(E5=TRUE,5,\"na\")","v":5}]
["12th revision in 2 Months","12th2months",null,"Fri",true,{"$f":"IF(E6=TRUE,6,\"na\")","v":6}]
["12th Fast Track in 24 days","12th24days",null,"Sat",true,{"$f":"IF(E7=TRUE,7,\"na\")","v":7}]

{"sheet":"1_12th2months","index":8,"n_rows":74,"n_cols":27,"rows_kept":74,"cut":false,"hidden":false,"merged":[[58,1,58,4],[70,1,70,4],[73,1,73,4],[1,1,1,4],[1,6,1,9],[2,5,73,5],[13,6,13,9],[22,1,22,4],[26,1,26,4],[27,1,27,4],[41,1,41,4],[56,1,56,4],[57,1,57,4]]}
["Date","Subject","Unit","Chapter","Lecture",null,"Subject","Unit","Chapter","Lecture",null,null,null,null,null,null,null,null,null,null,null,null,null,null,null,null,"TimeTable"]
[null,"Morning (Time Slot 1)",null,null,null,null,"Evening (Time Slot 2)"]
["2021-09-10","Physics","Optics","Reflection","Day 1 & 2",null,"Chemistry","Physical Chemistry part 2","Chemical Kinetics","Day 1 & 2"]
["2021-09-11","Chemistry","Physical Chemistry part 2","Chemical Kinetics","Day 3 & 4",null,"Maths","Integral Calculas","Indefinite Integral","Day 1 & 2"]
["2021-09-12","Maths","Integral Calculas","Indefinite Integral","Day 3 & 4",null,"Physics","Optics","Reflection","Day 3 & 4"]
["2021-09-13","Physics","Optics","Refraction","Day 1 & 2",null,"Chemistry","Physical Chemistry part 2","Chemical Kinetics","Day 5"]
["2021-09-14","Chemistry","Physical Chemistry part 2","Chemical Equilibrium","Day 1 & 2",null,"Maths","Integral Calculas","Indefinite Integral","Day 5 & 6"]
["2021-09-15","Maths","Integral Calculas","Indefinite Integral","Day 7 & 8",null,"Physics","Optics","Refraction","Day 3"]
["2021-09-16","Physics","Optics","Refraction","Day 4 & 5",null,"Chemistry","Physical Chemistry part 2","Chemical Equilibrium","Day 3"]
["2021-09-17","Chemistry","Physical Chemistry part 2","Chemical Equilibrium","Day 4 & 5",null,"Maths","Integral Calculas","Indefinite Integral","Day 9"]
["2021-09-18","Maths","Integral Calculas","Indefinite Integral","Day 10 & 11",null,"Physics","Optics","Wave Optics","Day 1"]
["2021-09-19","Physics","Optics","Wave Optics","Day 2",null,"Chemistry","Physical Chemistry part 2","Ionic Equilibrium ","Day 1 & 2"]
["2021-09-20","Chemistry","Physical Chemistry part 2","Ionic Equilibrium ","Day 3 & 4",null,"Maths","Integral Calculas","Definite Integral","Day 1 & 2"]
["2021-09-21","Maths","Integral Calculas","Definite Integral","Day 3 & 4",null,"Optics Unit Test"]
["2021-09-22","Physics","Electrostatics and Current Electricity","Electrostatics","Day 1 & 2",null,"Chemistry","Physical Chemistry part 2","Ionic Equilibrium ","Day 5 & 6"]
["2021-09-23","Chemistry","Physical Chemistry part 2","Electrolysis and Electrolitic Conductance ","Day 1 & 2",null,"Maths","Integral Calculas","Definite Integral","Day 5"]
["2021-09-24","Maths","Integral Calculas","Area ","Day 1",null,"Physics","Electrostatics and Current Electricity","Electrostatics","Day 3 & 4"]
["2021-09-25","Physics","Electrostatics and Current Electricity","Electrostatics","Day 5 & 6",null,"Chemistry","Physical Chemistry part 2","Electrolysis and Electrolitic Conductance ","Day 3"]
["2021-09-26","Chemistry","Physical Chemistry part 2","Ideal Solutions ","Day 1 & 2",null,"Maths","Integral Calculas","Area ","Day 2 & 3"]
["2021-09-27","Maths","Integral Calculas","Differential Equation ","Day 1 & 2",null,"Physics","Electrostatics and Current Electricity","Capacitor","Day 1 & 2"]
["2021-09-28","Physics","Electrostatics and Current Electricity","Capacitor","Day 3 & 4",null,"Chemistry","Physical Chemistry part 2","Ideal Solutions ","Day 3 & 4"]
["2021-09-29","Chemistry","Physical Chemistry part 2","Ideal Solutions ","Day 5 & 6",null,"Maths","Integral Calculas","Differential Equation ","day 3"]
["2021-09-30","Integral Calculas Unit Test",null,null,null,null,"Physics","Electrostatics and Current Electricity","Current Electricity","Day 1 & 2"]
["2021-10-01","Physics","Electrostatics and Current Electricity","Current Electricity","Day 3",null,"Chemistry","Physical Chemistry part 2","Surface Chemistry","Day 1 & 2"]
["2021-10-02","Chemistry","Physical Chemistry part 2","Surface Chemistry","Day 3 ",null,"Maths","Coordinate Geometry","Coordinate Geometry Systems and Coordinate Geometrys","Day 1 & 2"]
["2021-10-03","Maths","Coordinate Geometry","Coordinate Systems and Coordinates","Day 3 & 4",null,"Physics","Electrostatics and Current Electricity","Current Electricity","Day 4 & 5"]
["2021-10-04","Electrostatics and Current Electricity Unit Test",null,null,null,null,"Chemistry","Physical Chemistry part 2","Surface Chemistry","Day 4"]
["2021-10-05","Physical Chemistry part 2 Unit Test",null,null,null,null,"Maths","Coordinate Geometry","Coordinate Systems and Coordinates","Day 5"]
["2021-10-06","Maths","Coordinate Geometry","The Straight Lines","Day 1 & 2",null,"Physics","Electro Magnetic","Moving Charge in Magnetic Field","Day 1 & 2"]
["2021-10-07","Physics","Electro Magnetic","Moving Charge in Magnetic Field","Day 3 & 4",null,"Chemistry","Inorganic Chemistry Part 2","p-Block Elements and their Compounds ","Day 1 & 2"]
["2021-10-08","Chemistry","Inorganic Chemistry Part 2","p-Block Elements and their Compounds ","Day 3 & 4",null,"Maths","Coordinate Geometry","The Straight Lines","Day 3 & 4"]
["2021-10-09","Maths","Coordinate Geometry","The Straight Lines","Day 5",null,"Physics","Electro Magnetic","Moving Charge in Magnetic Field","Day 5"]
["2021-10-10","Physics","Electro Magnetic","Magnetic field of Current Element","Day 1 & 2",null,"Chemistry","Inorganic Chemistry Part 2","p-Block Elements and their Compounds ","Day 5 & 6"]
["2021-10-11","Chemistry","Inorganic Chemistry Part 2","p-Block Elements and their Compounds ","Day 7 & 8",null,"Maths","Coordinate Geometry","The Straight Lines","Day 6"]
["2021-10-12","Maths","Coordinate Geometry","The Pair of Straight Lines","Day 1  & 2",null,"Physics","Electro Magnetic","Magnetic field of Current Element","Day 3 & 4"]
["2021-10-13","Physics","Electro Magnetic","Magnetic field of Current Element","Day 5 & 6",null,"Chemistry","Inorganic Chemistry Part 2","p-Block Elements and their Compounds ","Day 9 & 10"]
["2021-10-14","Chemistry","Inorganic Chemistry Part 2","p-Block Elements and their Compounds ","Day 11 & 12",null,"Maths","Coordinate Geometry","The Pair of Straight Lines","Day 3"]
["2021-10-15","Maths","Coordinate Geometry","Circles","Day 1 & 2",null,"Physics","Electro Magnetic","Magnetic Flux and Gauss's law of Magnetism","Day 1 & 2"]
["2021-10-16","Physics","Electro Magnetic","Magnetic Flux and Gauss's law of Magnetism","Day 3",null,"Chemistry","Inorganic Chemistry Part 2","p-Block Elements and their Compounds ","Day 13 & 14"]
["2021-10-17","Chemistry","Inorganic Chemistry Part 2","p-Block Elements and their Compounds ","Day 15",null,"Maths","Coordinate Geometry","Circles","Day 3 & 4"]
["2021-10-18","Maths","Coordinate Geometry","Circles","Day 5 & 6",null,"Physics","Electro Magnetic","Magnetic Flux and Gauss's law of Magnetism","Day 4 & 5"]
["2021-10-19","Electro Magnetic unit Test",null,null,null,null,"Chemistry","Inorganic Chemistry Part 2","p-Block Elements and their Compounds ","Day 16"]
["2021-10-20","Chemistry","Inorganic Chemistry Part 2","d-Block Elements and their Compounds","Day 1 & 2",null,"Maths","Coordinate Geometry","Circles","Day 7 & 8"]
["2021-10-21","Maths","Coordinate Geometry","Circles","Day 9",null,"Physics","Modern Physics","Atomic Physics","Day 1 & 2"]
["2021-10-22","Physics","Modern Physics","Atomic Physics","Day 3 & 4",null,"Chemistry","Inorganic Chemistry Part 2","d-Block Elements and their Compounds","Day 3 & 4"]
["2021-10-23","Chemistry","Inorganic Chemistry Part 2","d-Block Elements and their Compounds","Dqay 5 & 6",null,"Maths","Coordinate Geometry","Parabola","Day 1 & 2"]
["2021-10-24","Maths","Coordinate Geometry","Parabola","Day 3 & 4",null,"Physics","Modern Physics","Atomic Physics","Day 5 & 6"]
["2021-10-25","Physics","Modern Physics","Nuclear Physics","Day 1 & 2",null,"Chemistry","Inorganic Chemistry Part 2","d-Block Elements and their Compounds","Day 7"]
["2021-10-26","Chemistry","Inorganic Chemistry Part 2","d-Block Elements and their Compounds","Day 8",null,"Maths","Coordinate Geometry","Parabola","Day 5"]
["2021-10-27","Maths","Coordinate Geometry","Ellipse","Day 1 & 2",null,"Physics","Modern Physics","Nuclear Physics","Day 3 & 4"]
["2021-10-28","Physics","Modern Physics","Electronics","Day 1 & 2",null,"Chemistry","Inorganic Chemistry Part 2","Coordination Compounds and Organometallic","Day 1 & 2"]
["2021-10-29","Chemistry","Inorganic Chemistry Part 2","Coordination Compounds and Organometallic","Day 3 & 4",null,"Maths","Coordinate Geometry","Ellipse","Day 3 & 4"]
["2021-10-30","Maths","Coordinate Geometry","Ellipse","Day 5",null,"Physics","Modern Physics","Electronics","Day 3"]
["2021-10-31","Physics","Modern Physics","Electronics","Day 4 & 5",null,"Chemistry","Inorganic Chemistry Part 2","Coordination Compounds and Organometallic","Day 5 & 6"]
["2021-11-01","Chemistry","Inorganic Chemistry Part 2","Coordination Compounds and Organometallic","Day 7",null,"Maths","Coordinate Geometry","Hyperbola","Day 1 & 2"]
["2021-11-02","Maths","Coordinate Geometry","Hyperbola","Day 3 & 4",null,"Physics","Modern Physics","Alternating Current","Day 1 & 2"]
["2021-11-03","Modern Physics Unit Test",null,null,null,null,"Chemistry","Inorganic Chemistry Part 2","Coordination Compounds and Organometallic","Day 8"]
["2021-11-04","Inorganic Chemistry Part 2 Unit Test",null,null,null,null,"Maths","Coordinate Geometry","Hyperbola","Day 5"]
["2021-11-05","Coordinate Geometry Unit Test",null,null,null,null,"Chemistry","Organic Chemistry Part 2","Halogens Compounds","Day 1 & 2"]
["2021-11-06","Chemistry","Organic Chemistry Part 2","Halogens Compounds","Day 3",null,"Maths","Vector & 3D","Vectors ","Day 1 & 2"]
["2021-11-07","Maths","Vector & 3D","Vectors ","Day 3 & 4",null,"Chemistry","Organic Chemistry Part 2","Alcohols, Phenols and Ethers","Day 1 & 2"]
["2021-11-08","Chemistry","Organic Chemistry Part 2","Alcohols, Phenols and Ethers","Day 3",null,"Maths","Vector & 3D","Vectors ","Day 5"]
["2021-11-09","Maths","Vector & 3D","Vectors ","Day 6 & 7",null,"Chemistry","Organic Chemistry Part 2","Alcohols, Phenols and Ethers","Day 4"]
["2021-11-10","Chemistry","Organic Chemistry Part 2","Ketones and Aldehydes","Day 1 & 2",null,"Maths","Vector & 3D","Vectors ","Day 8"]
["2021-11-11","Maths","Vector & 3D","Three Dimensional Co-ordinate System","Day 1 & 2",null,"Chemistry","Organic Chemistry Part 2","Ketones and Aldehydes","Day 3"]
["2021-11-12","Chemistry","Organic Chemistry Part 2","Ketones and Aldehydes","Day 4",null,"Maths","Vector & 3D","Three Dimensional Co-ordinate System","Day 3"]
["2021-11-13","Maths","Vector & 3D","Three Dimensional Co-ordinate System","Day 4",null,"Chemistry","Organic Chemistry Part 2","Carboxylic Acid","Day 1 & 2"]
["2021-11-14","Chemistry","Organic Chemistry Part 2","Carboxylic Acid","Day 3",null,"Maths","Vector & 3D","Plane","Day 1"]
["2021-11-15","Maths","Vector & 3D","Plane","Day 2 & 3",null,"Chemistry","Organic Chemistry Part 2","Nitrogen Compounds","Day 1 & 2"]
["2021-11-16","Chemistry","Organic Chemistry Part 2","Nitrogen Compounds","Day 3",null,"Maths","Vector & 3D","Sphere","Day 1"]
["2021-11-17","Vector & 3D Unit Test",null,null,null,null,"Chemistry","Organic Chemistry Part 2","Biomolecules","Day 1"]
["2021-11-18","Chemistry","Organic Chemistry Part 2","Biomolecules","Day 2",null,"Chemistry","Organic Chemistry Part 2","Polymers","Day 1"]
["2021-11-19","Chemistry","Organic Chemistry Part 2","Polymers","Day 2",null,"Chemistry","Organic Chemistry Part 2","Chemistry in Everyday Life","Day 1 & 2"]
["2021-11-20","Organic Chemistry Part 2 Unit Test"]

{"sheet":"2_11th2months","index":9,"n_rows":68,"n_cols":27,"rows_kept":68,"cut":false,"hidden":false,"merged":[[55,6,55,9],[67,1,67,4],[67,6,67,9],[1,1,1,4],[1,6,1,9],[2,5,67,5],[13,1,13,4],[28,6,28,9],[29,6,29,9],[38,1,38,4],[47,6,47,9],[48,6,48,9],[53,1,53,4]]}
["Date","Subject","Unit","Chapter","Lecture",null,"Subject","Unit","Chapter","Lecture",null,null,null,null,null,null,null,null,null,null,null,null,null,null,null,null,"TimeTable"]
[null,"Morning (Time Slot 1)",null,null,null,null,"Evening (Time Slot 2)"]
["2021-11-21","Physics","Mechanics ","Kinematics ","Day 1 & Day 2 ",null,"Chemistry","Physical Chemistry 1","Basic concept of Chemistry","Day 1 & Day 2 "]
["2021-11-22","Chemistry","Physical Chemistry 1","Basic concept of Chemistry","Day 3 & Day 4 ",null,"Maths","Triganometry ","Trignometirc Functions and Identities","Day 1 & Day 2 "]
["2021-11-23","Maths","Triganometry ","Trignometirc Functions and Identities","Day 3  ",null,"Physics","Mechanics ","Kinematics ","Day 3 & Day 4 "]
["2021-11-24","Physics","Mechanics ","Kinematics ","Day 5 & Day 6 ",null,"Chemistry","Physical Chemistry 1","Basic concept of Chemistry","Day 5 & Day 6 "]
["2021-11-25","Chemistry","Physical Chemistry 1","Properties of Gases","Day 1 & Day 2 ",null,"Maths","Triganometry ","Trignometirc Functions and Identities","Day 4 & Day 5 "]
["2021-11-26","Maths","Triganometry ","Trignometirc Equations ","Day 1 & Day 2 ",null,"Physics","Mechanics ","Kinematics ","Day 7  & Day 8 "]
["2021-11-27","Physics","Mechanics ","Kinematics ","Day 9",null,"Chemistry","Physical Chemistry 1","Properties of Gases","Day 3 & Day 4 "]
["2021-11-28","Chemistry","Physical Chemistry 1","Properties of Gases","Day 5 & Day 6 ",null,"Maths","Triganometry ","Trignometirc Equations ","Day 3  "]
["2021-11-29","Maths","Triganometry ","Trignometirc Equations ","Day 4 & Day 5",null,"Physics","Mechanics ","Kinematics ","Day 10 & Day 11"]
["2021-11-30","Physics","Mechanics ","Dynamics ","Day 1",null,"Chemistry","Physical Chemistry 1","Properties of Gases","Day 5 & Day 6 "]
["2021-12-01","Chemistry","Physical Chemistry 1","Thermodynamics","Day 1 & Day 2 ",null,"Maths","Triganometry ","Logarithms and Their Properties","Day 1  "]
["2021-12-02","Online Unit Test for Trignometry",null,null,null,null,"Physics","Mechanics ","Dynamics","Day 1"]
["2021-12-03","Physics","Mechanics ","Dynamics","Day 3 & Day 4 ",null,"Chemistry","Physical Chemistry 1","Thermodynamics ","Day 3 & Day 4 "]
["2021-12-04","Chemistry","Physical Chemistry 1","Thermodynamics","Day 5 & Day 6 ",null,"Maths","Algebra ","Complex Number","Day 1 & Day 2 "]
["2021-12-05","Maths","Algebra ","Complex Number","Day 3 & Day 4 ",null,"Physics","Mechanics ","Circular Motion ","Day 1 & Day 2 "]
["2021-12-06","Physics","Mechanics ","Circular Motion ","Day 3 & Day 4 ",null,"Chemistry","Physical Chemistry 1","Thermodynamics ","Day 5 & Day 6 "]
["2021-12-07","Chemistry","Physical Chemistry 1","Thermodynamics ","Day 7 & Day 8",null,"Maths","Algebra ","Complex Number","Day 3 & Day 4 "]
["2021-12-08","Maths","Algebra ","Complex Number","Day 5  ",null,"Physics","Mechanics ","Centre of Mass Momentum and Work Energy","Day 1 & Day 2 "]
["2021-12-09","Physics","Mechanics ","Centre of Mass Momentum and Work Energy","Day 3 & Day 4 ",null,"Chemistry","Physical Chemistry 1","Redox Reaction & Electromotive Force ","Day 1 & Day 2 "]
["2021-12-10","Chemistry","Physical Chemistry 1","Redox Reaction & Electromotive Force ","Day 3 & Day 4 ",null,"Maths","Algebra ","Complex Number","Day 6 & Day 7"]
["2021-12-11","Maths","Algebra ","Theory of Quadratic Equations ","Day 1  ",null,"Physics","Mechanics ","Centre of Mass Momentum and Work Energy","Day 5  "]
["2021-12-12","Physics","Mechanics ","Centre of Mass Momentum and Work Energy","Day 6 & Day 7",null,"Chemistry","Physical Chemistry 1","Structur of Atom","Day 1 & Day 2 "]
["2021-12-13","Chemistry","Physical Chemistry 1","Structur of Atom","Day 3 & Day 4 ",null,"Maths","Algebra ","Theory of Quadratic Equations ","Day 2 & Day 3"]
["2021-12-14","Maths","Algebra ","Permutations and Combinations ","Day 1",null,"Physics","Mechanics ","Rotation ","Day 1 & Day 2 "]
["2021-12-15","Physics","Mechanics ","Rotation ","Day 3 & Day 4 ",null,"Chemistry","Physical Chemistry 1","Solid States","Day 1 & Day 2"]
["2021-12-16","Chemistry","Physical Chemistry 1","Solid States","Day 3 & Day 4",null,"Maths","Algebra ","Permutations and Combinations ","Day 2 & Day 3"]
["2021-12-17","Maths","Algebra ","Probability","Day 1",null,"Online Test of Unit Mechanics "]
["2021-12-18","Physics","Thermal Physics ","Thermometry ","Day 1 & Day 2 ",null,"Online Test for Unit Physical Chemistry 1"]
["2021-12-19","Chemistry","Inorganic Chemistry 1","Basic concept of Periodic Table ","Day 1 & Day 2 ",null,"Maths","Algebra ","Probability","Day 2 & Day 3"]
["2021-12-20","Maths","Algebra ","Progression and Series","Day 1",null,"Physics","Thermal Physics ","Thermometry ","Day 3 & Day 4 "]
["2021-12-21","Physics","Thermal Physics ","Thermometry ","Day 5 & Day 6 ",null,"Chemistry","Inorganic Chemistry 1","Basic concept of Periodic Table ","Day 3 & Day 4 "]
["2021-12-22","Chemistry","Inorganic Chemistry 1","Basic concept of Periodic Table ","Day 5 & Day 6 ",null,"Maths","Algebra ","Progression and Series","Day 2 & Day 3"]
["2021-12-23","Maths","Algebra ","Binomial Theorem","Day 1",null,"Physics","Thermal Physics ","Thermodynamics ","Day 1 & Day 2 "]
["2021-12-24","Physics","Thermal Physics ","Thermodynamics ","Day 3 & Day 4",null,"Chemistry","Inorganic Chemistry 1","Metallurgy","Day 1 & Day 2"]
["2021-12-25","Chemistry","Inorganic Chemistry 1","Metallurgy","Day 3 & Day 4",null,"Maths","Algebra ","Binomial Theorem","Day 2 & Day 3"]
["2021-12-26","Maths","Algebra ","Determinants","Day 1 & Day 2 ",null,"Physics","Thermal Physics ","Heat Transfer ","Day 1 & Day 2 and (School Level)"]
["2021-12-27","Online Unit Test for Thermal Physics ",null,null,null,null,"Chemistry","Inorganic Chemistry 1","Metallurgy","Day 5"]
["2021-12-28","Chemistry","Inorganic Chemistry 1","Metallurgy","Day 6 & Day 7",null,"Maths","Algebra ","Determinants","Day 3 & Day 4 "]
["2021-12-29","Maths","Algebra ","Metrices","Day 1 & Day 2 ",null,"Physics","Fluid Mechanics & Waves","Fluid","Day 1 & Day 2"]
["2021-12-30","Physics","Fluid Mechanics & Waves","Fluid","Day 2 & Day 3 ",null,"Chemistry","Inorganic Chemistry 1","s-Block Elements ","Day 1 & Day 2 "]
["2021-12-31","Chemistry","Inorganic Chemistry 1","s-Block Elements ","Day 3 & Day 4",null,"Maths","Algebra ","Metrices","Day 3 & Day 4"]
["2022-01-01","Maths","Algebra ","Mean and Variance","Day 1 & Day 2 ",null,"Physics","Fluid Mechanics & Waves","Fluid","Day 5 & Day 6 "]
["2022-01-02","Physics","Fluid Mechanics & Waves","Waves ","Day 1 & Day 2 ",null,"Chemistry","Inorganic Chemistry 1","s-Block Elements ","Day 5"]
["2022-01-03","Chemistry","Inorganic Chemistry 1","s-Block Elements ","Day 6 & Day 7",null,"Maths","Algebra ","Linear Programming ","Day 1"]
["2022-01-04","Maths","Algebra ","Linear Programming ","Day 2 & Day 3 ",null,"Physics","Fluid Mechanics & Waves","Waves ","Day 2 & Day 3"]
["2022-01-05","Physics","Fluid Mechanics & Waves","Waves ","Day 5 & Day 6 ",null," Online Unit Test for Inorganic Chemistry 1"]
["2022-01-06","Chemistry","Organic Chemistry 1","Fundamental concepts of Orgnaic Chemistry ","Day 1 & Day 2 ",null," Online Unit Test for Algebra "]
["2022-01-07","Maths","Differential Calculus ","Fundamental and Functions ","Day 1 & Day 2 ",null,"Physics","Fluid Mechanics & Waves","Simple Harmonic Motion ","Day 1 & Day 2"]
["2022-01-08","Physics","Fluid Mechanics & Waves","Simple Harmonic Motion ","Day 3 & Day 4",null,"Chemistry","Organic Chemistry 1","Fundamental concepts of Orgnaic Chemistry ","Day 3 & Day 4 "]
["2022-01-09","Chemistry","Organic Chemistry 1","Fundamental concepts of Orgnaic Chemistry ","Day 5 & Day 6 ",null,"Maths","Differential Calculus ","Fundamental and Functions ","Day 3 & Day 4 "]
["2022-01-10","Maths","Differential Calculus ","Fundamental and Functions ","Day 5 & Day 6 ",null,"Physics","Fluid Mechanics & Waves","Gravitation and Satellite ","Day 1 & Day 2 "]
["2022-01-11","Online Test for Fluid Mechanics & Waves",null,null,null,null,"Chemistry","Organic Chemistry 1","Fundamental concepts of Orgnaic Chemistry ","Day 7  & Day 8 "]
["2022-01-12","Chemistry","Organic Chemistry 1","Fundamental concepts of Orgnaic Chemistry ","Day 9 & Day 10 ",null,"Maths","Differential Calculus ","Limit","Day 1 & Day 2"]
["2022-01-13","Maths","Differential Calculus ","Limit","Day 3 & Day 4",null,"Online Unit Test for Organic Chemistry 1"]
["2022-01-14","Chemistry","Organic Chemistry 2","Basic Organic Chemistry ","Day 1 & Day 2 ",null,"Maths","Differential Calculus ","Continuity and Differentiability","Day 1"]
["2022-01-15","Maths","Differential Calculus ","Continuity and Differentiability","Day 2 & Day 3 ",null,"Chemistry","Organic Chemistry 2","Basic Organic Chemistry ","Day 3 & Day 4"]
["2022-01-16","Chemistry","Organic Chemistry 2","Basic Organic Chemistry ","Day 5 & Day 6 ",null,"Maths","Differential Calculus ","Differentiation ","Day 1 & Day 2"]
["2022-01-17","Maths","Differential Calculus ","Differentiation ","Day 3 & Day 4",null,"Chemistry","Organic Chemistry 2","Basic Organic Chemistry ","Day 7  "]
["2022-01-18","Chemistry","Organic Chemistry 2","Basic Organic Chemistry ","Day 8 & Day 9",null,"Maths","Differential Calculus ","Application and Derivatives  \nTangents and Normals","Day 1\nDay 1"]
["2022-01-19","Maths","Differential Calculus ","Tangents and Normals ","Day 2  ",null,"Chemistry","Organic Chemistry 2","Reaction Mechanism","Day 1 & Day 2 "]
["2022-01-20","Chemistry","Organic Chemistry 2","Reaction Mechanism","Day 3 & Day 4",null,"Maths","Differential Calculus ","Monotoncity","Day 1"]
["2022-01-21","Maths","Differential Calculus ","Monotoncity","Day 2 & Day 3 ",null,"Chemistry","Organic Chemistry 2","Reaction Mechanism","Day 5 & Day 6 "]
["2022-01-22","Chemistry","Organic Chemistry 2","Hydrocarbon","Day 1 & Day 2 ",null,"Maths","Differential Calculus ","Maxima Minima","Day 1 & Day 2"]
["2022-01-23","Maths","Differential Calculus ","Maxima Minima","Day 3 & Day 4",null,"Chemistry","Organic Chemistry 2","Hydrocarbon","Day 3"]
["2022-01-24","Chemistry","Organic Chemistry 2","Hydrocarbon","Day 4 & Day 5",null,"Maths","Differential Calculus ","Graphical Transformation ","Day 1"]
["2022-01-25","Online Unit Test for Differential Calculus ",null,null,null,null,"Online Unit Test for Organic Chemistry 2"]

{"sheet":"How to Use Time Table","index":10,"n_rows":3,"n_cols":17,"rows_kept":3,"cut":false,"hidden":false,"merged":[[0,0,0,11]]}
["Before going further please learn how to enable micro"]
[]
[null,null,null,null,null,null,null,null,null,null,null,null,null,null,null,null,"Go Back to Home Page"]

{"sheet":"Enable Macros","index":11,"n_rows":51,"n_cols":13,"rows_kept":51,"cut":false,"hidden":false,"merged":[[0,1,0,5],[50,12,50,15],[24,0,24,10],[50,2,50,5],[38,2,38,5],[38,7,38,10],[50,7,50,10],[20,0,20,5],[20,7,20,15]]}
[null,"Steps to follow to enable micros",null,null,null,null,null,null,"Back to Home Page"]
[]
[" "]
[]
[]
[]
[]
[]
[]
[]
[]
[]
[]
[]
[]
[]
[]
[]
[]
[]
["1. Click on Options you see on Top",null,null,null,null,null,null,"2. Select \"Enable the content\" click \"OK\""]
[]
[]
[]
["If you have not received the Notification Like in above please follow the following steps"]
[]
[]
[]
[]
[]
[]
[]
[]
[]
[]
[]
[]
[]
["1. Click the Microsoft Office Button",null,"2. then click Excel Options",null,null,null,null,"3. Click Trust Center"]
[]
[]
[]
[]
[]
[]
[]
[]
[]
[]
[]
["4. click Trust Center Settings",null,"5.  click Macro Settings.",null,null,null,null,"6. Select Enable All Macros",null,null,null,null,"7. Click Ok. Save and restart File"]